Workbook

Sheet TEMPLATE Zahlungsantrag (hidden)
J1: Agrarmarkt Austria
J2: Dresdner Straße 70 | AN2: =VLOOKUP(PaymAppl_IntentCode,ProjectTypeSponsors,2) -> BMLRT/LE1420/LD/EU
J3: A-1200 Wien | AN3: BMLRT/LE1420/LD/EU
J4: www.ama.at | AN4: 3
J5: DVR: 0719838 | AN5: Logo-NOe
A7: Zahlungsantrag
A8: zur Auszahlung einer Förderung eines Vorhabens
A9: im Rahmen des Österreichischen Programms für ländliche Entwicklung 2014 - 2020 | AN9: X:\Rita Kostenkalkulation\Rita 2016-06-15\Development\Out\Branch
A11: Antragsnummer des betroffenen Vorhabens | Y11: Eingangsvermerk (Einreich-/Bewilligende Stelle)
A14: Bei vorgelegter Abrechnung handelt es sich um die
AN16: 1
A18: Der Gebietskörperschaftsanteil beträgt in % | AN18: =IF(PaymAppl_PartialPaymSelect=1,IF(TRIM(PaymAppl_PartialPaymID)="",""," / TZ " & TRIM(PaymAppl_PartialPaymID))," / EndZ") -> 
A20: Vorhaben
A22: Code / Vorhabensart
A23: Bitte auswählen
A25: Kurzbezeichnung des Vorhabens:
A27: Angaben zum Förderungswerber/zur Förderungswerberin | AN27: 1
A29: Betriebs- bzw. Klientennummer: | X29: Vorsteuerabzugsberechtigt | AN29: =IF(AN27=1,"Ja","Nein") -> Ja
AN31: 1
B32: Titel, Name, Vorname | AA32: Geburtsdatum | AN32: =TRIM(PaymAppl_IndividualName) -> 
B35: Titel, Name, Vorname | AA35: Geburtsdatum | AN35: =IF(TRIM(PaymAppl_CoupleNameA)="","???",TRIM(PaymAppl_CoupleNameA)) -> ???
B37: Titel, Name, Vorname | AA37: Geburtsdatum | AN37: =IF(TRIM(PaymAppl_CoupleNameB)="","???",TRIM(PaymAppl_CoupleNameB)) -> ???
B40: Name/Unternehmen | AN40: =TRIM(PaymAppl_LegalEntityName) -> 
B42: Gesellschaftsform | AA42: ZVR/FB-Nr./GKZ
B45: Name | AN45: =TRIM(PaymAppl_PersonGroupName) -> 
B47: Gesellschaftsform
A49: Vertretungsbefugte/r | AA49: Geburtsdatum
A51: Vertretungsbefugte/r | AA51: Geburtsdatum
A53: Zustelladresse: Straße, Hausnr.
A55: Zustelladresse: PLZ, Ort
A57: Betriebsadresse: Straße, Hausnr.
A59: Betriebsadresse: PLZ, Ort
A61: Mobil-,Telefonnr./Email-/Internetadresse
A63: Bankverbindung
A65: IBAN | AA65: BIC
A67: ACHTUNG: | F67: Alle Zahlungen werden auf die letzte von Ihnen bekanntgegebene Bankverbindung überwiesen. Ihr Auszahlungskonto können Sie jederzeit im eAMA unter KUNDENDATEN einsehen und ändern.
A69: Förderungswerber/in | H69: =IF(AN31=1,AN32,IF(AN31=2,AN35 & "/" & AN37,IF(AN31=3,AN40,IF(AN31=4,AN45,"???")))) ->  | W69: Betriebs-/Klientennummer | AF69: =IF(ISBLANK(M29),"",M29) -> 
A71: Zahlungsantrag (Seite 2)
A73: eingereichte Kosten
C75: Belegbetrag brutto | L75: Belegbetrag netto | U75: eingereichte Kosten | AD75: Einnahmen
I77: € | R77: € | AA77: € | AJ77: €
A79: genehmigter Zeitraum für die Kostenanerkennung | W79: von | AE79: bis
A81: Allgemeine Beilagen | AA81: liegt bei | AD81: wird nachgereicht | AI81: nicht erforderlich
A83: Abrechnungsbelege (Rechnungen, Honorarnoten, Jahreslohnkonten etc.)
A85: Belegaufstellung - Investitionen und Sachaufwand
A87: Belegaufstellung - unbare Eigenleistungen (=unbare Sachleistungen)
A89: Belegaufstellung Personalkosten
A91: Zeitaufzeichnungen, Tätigkeitsbeschreibungen
A93: Zahlungsnachweis/e
A95: Nachweis über die Einhaltung der Publizitätskriterien
A97: Sonstige Beilage(n):
A99: Vorhabensspezifische Beilagen, die spätestens mit der Endabrechnung vorgelegt werden müssen: | AA99: liegt bei | AD99: wird nachgereicht | AI99: nicht erforderlich
A101: Benutzungsbewilligung
A103: Endbericht
A105: Versichungsnachweis bei Investitionen in unbewegl. Investitionsgegenstände
A107: Evaluierungsdatenblatt
A109: Sonstige Beilage(n):
A111: Angaben zu anderen Förderungen/Zuschüssen | AC111: Keine weitere/n Förderung/en bzw. Zuschüsse
A113: Im Rahmen d. Projektes wurde bei folgenden anderen Förderstellen um eine Förderung bzw. einen Zuschuss angesucht:
A114: Geben Sie hier die entsprechende Stelle sowie die/den beantragte(n)/genehmigten(n)/erhaltene(n) Förderung/Zuschuss an!
AA115: Förderung/Zuschuss im Ausmaß von
A118: Bund: | AK118: €
A120: Land: | AK120: €
A122: Gemeinde/n: | AK122: €
A124: Mit meiner Unterschrift bestätige ich,
B125: -) dass ich alle Angaben im Zahlungsantrag und sämtlichen Beilagen mit bestem Wissen gemacht habe,
B126: -) Abrechnungsbelege nicht in unzulässiger Weise zur Abrechnung einer bei einer anderen Abwicklungsstelle beantragten Förderung eingebracht habe oder einreichen werde (unzulässige Mehrfachförderung)
B127: -) die Beantragung einer mit der LE-Projektförderung kumulierbaren Förderung bei einer anderen Förderungs- abwicklungsstelle der Bewilligenden Stelle gemeldet habe oder melden werde,
B128: -) allen Verpflichtungen gegenüber der Bewilligenden Stelle (z.B. Meldeverpflichtung) nachgekommen bin,
B129: -) dass alle Personen, deren Daten im Rahmen dieses Zahlungsantrages offengelegt wurden, von mir darüber informiert wurden, dass eine Verarbeitung ihrer Daten durch die Zahlstelle und Bewilligende Stelle für Zwecke
B130: der Abwicklung und Kontrolle der Förderung erfolgt.
A131: und ersuche um Auszahlung des entsprechenden Förderungsbetrages.
A134: Ort, Datum | I134: Name in Blockbuchstaben | Y134: Unterschrift bzw. firmenmäßige Zeichnung
AM135: RL/AMA v469.25 / Jan. 2022
A139: Liste verfügbarer Vorhabensarten (für Pop-Up-Menu)
A140: Bitte auswählen
A141: M 1 A) - Wissenstransfer und Informationsmaßnahmen in der Land- und Forstwirtschaft - Landwirtschaft
A142: M 1 B) - Wissenstransfer und Informationsmaßnahmen in der Land- und Forstwirtschaft - Forstwirtschaft
A143: -
A144: 2.1.1. A) - Inanspruchnahme von Beratungsleistungen - Landwirtschaft
A145: 2.1.1. B) - Inanspruchnahme von Beratungsleistungen - Forstwirtschaft
A146: 2.1.1. C) - Inanspruchnahme von Beratungsleistungen - KMU
A147: 2.3.1. - Ausbildung von BeraterInnen
A148: -
A149: 3.2.1. - Informations- und Absatzförderungsmaßnahmen
A150: -
A151: 4.1.1. - Investitionen in die landwirtschaftliche Erzeugung
A152: 4.2.1. A) - Verarbeitung, Vermarktung und Entwicklung landwirtschaftlicher Erzeugnisse (Bewilligung AWS)
A153: 4.2.1. B) - Verarbeitung, Vermarktung und Entwicklung landwirtschaftlicher Erzeugnisse (Bewilligung Bundesländer)
A154: 4.3.1. - Investitionen in überbetriebliche Bewässerungsinfrastruktur
A155: 4.3.2. - Investitionen in die Infrastruktur für die Entwicklung, Modernisierung und Anpassung der Forstwirtschaft
A156: 4.4.1. - Nichtproduktive Investitionen – Ökologische Verbesserung von Gewässern in landwirtschaftlich geprägten Regionen
A157: 4.4.2. - Nichtproduktive Investitionen – Investitionen zur Stabilisierung von Rutschungen
A158: 4.4.3. - Nichtproduktive Investitionen – Ökologische Agrarinfrastruktur zur Flurentwicklung
A159: -
A160: 6.1.1. - Existenzgründungsbeihilfen für JunglandwirtInnen
A161: 6.4.1. - Diversifizierung hin zu nichtlandwirtschaftlichen Tätigkeiten
A162: 6.4.2. - Diversifizierung lw. und fw. Betriebe durch Energie aus nachwachsenden Rohstoffen sowie Energiedienstleistungen
A163: 6.4.3. - Photovoltaik in der Landwirtschaft
A164: 6.4.4. - Gründung von innovativen Kleinunternehmen im ländlichen Raum
A165: 6.4.5. - Förderung von Nahversorgungsbetrieben einschließlich gewerblicher Beherbergungs- und Gastronomiebetriebe
A166: -
A167: 7.1.1. A) - Pläne und Entwicklungskonzepte zur Erhaltung des natürlichen Erbes - Naturschutz - Bund
A168: 7.1.1. A) - Pläne und Entwicklungskonzepte zur Erhaltung des natürlichen Erbes - Naturschutz - Länder
A169: 7.1.1. B) - Pläne und Entwicklungskonzepte zur Erhaltung des natürlichen Erbes - Nationalparks
A170: 7.1.2. - Pläne und Entwicklungskonzepte zur Dorferneuerung
A171: 7.1.3. - Lokale Agenda 21 - Bund
A172: 7.1.3. - Lokale Agenda 21 - Länder
A173: 7.2.1. - Ländliche Verkehrsinfrastruktur
A174: 7.2.2. - Investitionen in erneuerbare Energien
A175: 7.2.3. - Umsetzung von Klima- und Energieprojekten auf lokaler Ebene
A176: 7.3.1. - Breitbandinfrastruktur in ländlichen Gebieten
A177: 7.4.1. A) - Soziale Angelegenheiten - BMASK
A178: 7.4.1. B) - Soziale Angelegenheiten - BMG
A179: 7.4.2. - Klimafreundliche Mobilitätslösungen (klimaaktiv mobil)
A180: 7.5.1. A) - Investitionen in kleine touristische Infrastruktur - BMLRT
A181: 7.5.1. B) - Investitionen in kleine touristische Infrastruktur - Forst
A182: 7.5.1. C) - Investitionen in kleine touristische Infrastruktur - Länder
A183: 7.6.1. A) - Studien und Investitionen zur Erhaltung, Wiederherstellung und Verbesserung des natürlichen Erbes - Naturschutz - Bund
A184: 7.6.1. A) - Studien und Investitionen zur Erhaltung, Wiederherstellung und Verbesserung des natürlichen Erbes - Naturschutz - Länder
A185: 7.6.1. B) - Studien und Investitionen zur Erhaltung, Wiederherstellung und Verbesserung des natürlichen Erbes - Nationalparks
A186: 7.6.1. C) - Studien und Investitionen zur Erhaltung, Wiederherstellung und Verbesserung des natürlichen Erbes - Forst - Bund
A187: 7.6.1. C) - Studien und Investitionen zur Erhaltung, Wiederherstellung und Verbesserung des natürlichen Erbes - Forst - Länder
A188: 7.6.2. - Umsetzung von Plänen zur Dorferneuerung und Gemeindeentwicklung
A189: 7.6.3. - Erhaltung und Entwicklung der Kulturlandschaft
A190: 7.6.4. - Überbetriebliche Maßnahmen für die Bereiche Wald und Schutz vor Naturgefahren
A191: 7.6.5. - Stärkung der Potenziale des alpinen ländlichen Raums
A192: -
A193: 8.1.1. - Aufforstung und Anlage von Wäldern
A194: 8.4.1. - Vorbeugung von Schäden und Wiederherstellung von Wäldern nach Naturkatastrophen und Katastrophenereignissen - Forstschutz
A195: 8.5.1. - Investitionen zur Stärkung von Resistenz und ökologischem Wert des Waldes - Öffentlicher Wert & Schutz vor Naturgefahren
A196: 8.5.2. - Investitionen zur Stärkung von Resistenz und ökologischem Wert des Waldes - Genetische Ressourcen
A197: 8.5.3. - Investitionen zur Stärkung des ökologischen Werts der Waldökosysteme - Wald-Ökologie-Programm
A198: 8.6.1. - Investitionen in Forsttechniken, Verarbeitung, Mobilisierung und Vermarktung forstwirtschaftlicher Erzeugnisse
A199: 8.6.2. - Erstellung von waldbezogenen Plänen auf betrieblicher Ebene
A200: -
A201: 15.1.1. - Erhaltung von ökologisch wertvollen/seltenen Waldflächen /-gesellschaften
A202: 15.2.1. - Erhaltung und Verbesserung der genetischen Ressourcen des Waldes
A203: -
A204: 16.01.1. - Unterstützung beim Aufbau & Betrieb operationeller Gruppen der EIP für lw. Produktivität & Nachhaltigkeit
A205: 16.02.1. - Unterstützung bei der Entwicklung neuer Erzeugnisse, Verfahren & Technologien der Land-, Ernährungs- & Forstwirtschaft
A206: 16.02.2. A) - Unterstützung bei der Entwicklung von innovativen Pilotprojekten im Tourismus - BMLRT
A207: 16.02.2. B) - Unterstützung bei der Entwicklung von innovativen Pilotprojekten im Tourismus - Länder
A208: 16.03.1. A) - Zusammenarbeit von kleinen WirtschaftsteilnehmerInnen - Arbeitsabläufe, Ressourcennutzung und Tourismusdienstleistungen
A209: 16.03.1. A) - Zusammenarbeit von kleinen WirtschaftsteilnehmerInnen - Arbeitsabläufe, Ressourcennutzung und Tourismusdienstleistungen - BMLRT
A210: 16.03.1. B) - Zusammenarbeit von kleinen WirtschaftsteilnehmerInnen - Arbeitsabläufe, Ressourcennutzung und Tourismusdienstleistungen - BMLRT
A211: 16.03.1. C) - Zusammenarbeit von kleinen WirtschaftsteilnehmerInnen - Arbeitsabläufe, Ressourcennutzung und Tourismusdienstleistungen - Länder
A212: 16.03.2. - Zusammenarbeit von Kleinstunternehmen im ländlichen Raum
A213: 16.04.1. - Schaffung und Entwicklung von kurzen Versorgungsketten und lokalen Märkten sowie unterstützende Absatzförderung
A214: 16.05.1. - Stärkung der horizontalen und vertikalen Zusammenarbeit zwischen AkteurInnen im forst- und wasserwirtschaftlichen Sektor
A215: 16.05.2. A) - Stärkung der Zusammenarbeit von AkteurInnen und Strukturen zur Erhaltung des natürlichen Erbes & des Umweltschutzes - Naturschutz
A216: 16.05.2. A) - Stärkung der Zusammenarbeit von AkteurInnen und Strukturen zur Erhaltung des natürlichen Erbes & des Umweltschutzes - Naturschutz - Länder
A217: 16.05.2. B) - Stärkung der Zusammenarbeit von AkteurInnen und Strukturen zur Erhaltung des natürlichen Erbes & des Umweltschutzes - Umweltschutz
A218: 16.05.2. C) - Stärkung der Zusammenarbeit von AkteurInnen und Strukturen zur Erhaltung des natürlichen Erbes & des Umweltschutzes - Nationalparks
A219: 16.08.1. - Waldbezogene Pläne auf überbetrieblicher Ebene
A220: 16.09.1. - Förderung horizontaler & vertikaler Zusammenarbeit lw. & fw. AkteurInnen zur Schaffung & Entwicklung v. Sozialleistungen - BMLRT
A221: 16.10.1. - Einrichtung und Betrieb von Clustern - BMLRT
A222: 16.10.2. - Einrichtung und Betrieb von Netzwerken - BMLRT
A223: 16.10.3. - Zusammenarbeit: Erzeugergemeinschaften /-organisationen, Genossenschaften und Branchenverbände - BMLRT
A224: -
A225: 19.1.1. - Erstellung der lokalen Entwicklungsstrategie - Länder
A226: 19.1.1. - Erstellung der lokalen Entwicklungsstrategie
A227: 19.2.1. - Umsetzung der lokalen Entwicklungsstrategie - Länder
A228: 19.2.1. - Umsetzung der lokalen Entwicklungsstrategie
A229: 19.3.1. - Umsetzung von nationalen oder transnationalen Kooperationsprojekten - Länder
A230: 19.3.1. - Umsetzung von nationalen oder transnationalen Kooperationsprojekten
A231: 19.4.1. - Laufende Kosten des LAG-Managements und Sensibilisierung - Länder
A232: 19.4.1. - Laufende Kosten des LAG-Managements und Sensibilisierung
A233: -
A234: 20.1. - Technische Hilfe (außer Netzwerk)
A235: 20.2. - Technische Hilfe - Netzwerk

Sheet Zahlungsantrag LEW14-20
J1: Agrarmarkt Austria
J2: Dresdner Straße 70 | AN2: =VLOOKUP(PaymAppl_IntentCode,ProjectTypeSponsors,2) -> BMLRT/LE1420/LD/EU
J3: A-1200 Wien | AN3: BMLRT/LE1420/LD/EU
J4: www.ama.at | AN4: 3
J5: DVR: 0719838 | AN5: Logo-NOe
A7: Zahlungsantrag
A8: zur Auszahlung einer Förderung eines Vorhabens
A9: im Rahmen des Österreichischen Programms für ländliche Entwicklung 2014 - 2020 | AN9: X:\Rita Kostenkalkulation\Rita 2016-06-15\Development\Out\Branch
A11: Antragsnummer des betroffenen Vorhabens | Y11: Eingangsvermerk (Einreich-/Bewilligende Stelle)
A14: Bei vorgelegter Abrechnung handelt es sich um die
AN16: 1
A18: Der Gebietskörperschaftsanteil beträgt in % | AN18: =IF(PaymAppl_PartialPaymSelect=1,IF(TRIM(PaymAppl_PartialPaymID)="",""," / TZ " & TRIM(PaymAppl_PartialPaymID))," / EndZ") -> 
A20: Vorhaben
A22: Code / Vorhabensart
A23: Bitte auswählen
A25: Kurzbezeichnung des Vorhabens:
A27: Angaben zum Förderungswerber/zur Förderungswerberin | AN27: 1
A29: Betriebs- bzw. Klientennummer: | X29: Vorsteuerabzugsberechtigt | AN29: =IF(AN27=1,"Ja","Nein") -> Ja
AN31: 1
B32: Titel, Name, Vorname | AA32: Geburtsdatum | AN32: =TRIM(PaymAppl_IndividualName) -> 
B35: Titel, Name, Vorname | AA35: Geburtsdatum | AN35: =IF(TRIM(PaymAppl_CoupleNameA)="","???",TRIM(PaymAppl_CoupleNameA)) -> ???
B37: Titel, Name, Vorname | AA37: Geburtsdatum | AN37: =IF(TRIM(PaymAppl_CoupleNameB)="","???",TRIM(PaymAppl_CoupleNameB)) -> ???
B40: Name/Unternehmen | AN40: =TRIM(PaymAppl_LegalEntityName) -> 
B42: Gesellschaftsform | AA42: ZVR/FB-Nr./GKZ
B45: Name | AN45: =TRIM(PaymAppl_PersonGroupName) -> 
B47: Gesellschaftsform
A49: Vertretungsbefugte/r | AA49: Geburtsdatum
A51: Vertretungsbefugte/r | AA51: Geburtsdatum
A53: Zustelladresse: Straße, Hausnr.
A55: Zustelladresse: PLZ, Ort
A57: Betriebsadresse: Straße, Hausnr.
A59: Betriebsadresse: PLZ, Ort
A61: Mobil-,Telefonnr./Email-/Internetadresse
A63: Bankverbindung
A65: IBAN | AA65: BIC
A67: ACHTUNG: | F67: Alle Zahlungen werden auf die letzte von Ihnen bekanntgegebene Bankverbindung überwiesen. Ihr Auszahlungskonto können Sie jederzeit im eAMA unter KUNDENDATEN einsehen und ändern.
A69: Förderungswerber/in | H69: =IF(AN31=1,AN32,IF(AN31=2,AN35 & "/" & AN37,IF(AN31=3,AN40,IF(AN31=4,AN45,"???")))) ->  | W69: Betriebs-/Klientennummer | AF69: =IF(ISBLANK(M29),"",M29) -> 
A71: Zahlungsantrag (Seite 2)
A73: eingereichte Kosten
C75: Belegbetrag brutto | L75: Belegbetrag netto | U75: eingereichte Kosten | AD75: Einnahmen
C77: =Übersicht!D54 -> 0 | I77: € | L77: =IF(PaymAppl_TaxDeduct= "Nein", "---", Übersicht!E54) -> 0 | R77: € | U77: =Übersicht!F54 -> 0 | AA77: € | AD77: =Übersicht!L54 -> 0 | AJ77: €
A79: genehmigter Zeitraum für die Kostenanerkennung | W79: von | AE79: bis
A81: Allgemeine Beilagen | AA81: liegt bei | AD81: wird nachgereicht | AI81: nicht erforderlich
A83: Abrechnungsbelege (Rechnungen, Honorarnoten, Jahreslohnkonten etc.)
A85: Belegaufstellung - Investitionen und Sachaufwand
A87: Belegaufstellung - unbare Eigenleistungen (=unbare Sachleistungen)
A89: Belegaufstellung Personalkosten
A91: Zeitaufzeichnungen, Tätigkeitsbeschreibungen
A93: Zahlungsnachweis/e
A95: Nachweis über die Einhaltung der Publizitätskriterien
A97: Sonstige Beilage(n):
A99: Vorhabensspezifische Beilagen, die spätestens mit der Endabrechnung vorgelegt werden müssen: | AA99: liegt bei | AD99: wird nachgereicht | AI99: nicht erforderlich
A101: Benutzungsbewilligung
A103: Endbericht
A105: Versichungsnachweis bei Investitionen in unbewegl. Investitionsgegenstände
A107: Evaluierungsdatenblatt
A109: Sonstige Beilage(n):
A111: Angaben zu anderen Förderungen/Zuschüssen | AC111: Keine weitere/n Förderung/en bzw. Zuschüsse
A113: Im Rahmen d. Projektes wurde bei folgenden anderen Förderstellen um eine Förderung bzw. einen Zuschuss angesucht:
A114: Geben Sie hier die entsprechende Stelle sowie die/den beantragte(n)/genehmigten(n)/erhaltene(n) Förderung/Zuschuss an!
AA115: Förderung/Zuschuss im Ausmaß von
A118: Bund: | AK118: €
A120: Land: | AK120: €
A122: Gemeinde/n: | AK122: €
A124: Mit meiner Unterschrift bestätige ich,
B125: -) dass ich alle Angaben im Zahlungsantrag und sämtlichen Beilagen mit bestem Wissen gemacht habe,
B126: -) Abrechnungsbelege nicht in unzulässiger Weise zur Abrechnung einer bei einer anderen Abwicklungsstelle beantragten Förderung eingebracht habe oder einreichen werde (unzulässige Mehrfachförderung)
B127: -) die Beantragung einer mit der LE-Projektförderung kumulierbaren Förderung bei einer anderen Förderungs- abwicklungsstelle der Bewilligenden Stelle gemeldet habe oder melden werde,
B128: -) allen Verpflichtungen gegenüber der Bewilligenden Stelle (z.B. Meldeverpflichtung) nachgekommen bin,
B129: -) dass alle Personen, deren Daten im Rahmen dieses Zahlungsantrages offengelegt wurden, von mir darüber informiert wurden, dass eine Verarbeitung ihrer Daten durch die Zahlstelle und Bewilligende Stelle für Zwecke
B130: der Abwicklung und Kontrolle der Förderung erfolgt.
A131: und ersuche um Auszahlung des entsprechenden Förderungsbetrages.
A134: Ort, Datum | I134: Name in Blockbuchstaben | Y134: Unterschrift bzw. firmenmäßige Zeichnung
AM135: RL/AMA v469.25 / Jan. 2022
A139: Liste verfügbarer Vorhabensarten (für Pop-Up-Menu)
A140: Bitte auswählen
A141: M 1 A) - Wissenstransfer und Informationsmaßnahmen in der Land- und Forstwirtschaft - Landwirtschaft
A142: M 1 B) - Wissenstransfer und Informationsmaßnahmen in der Land- und Forstwirtschaft - Forstwirtschaft
A143: -
A144: 2.1.1. A) - Inanspruchnahme von Beratungsleistungen - Landwirtschaft
A145: 2.1.1. B) - Inanspruchnahme von Beratungsleistungen - Forstwirtschaft
A146: 2.1.1. C) - Inanspruchnahme von Beratungsleistungen - KMU
A147: 2.3.1. - Ausbildung von BeraterInnen
A148: -
A149: 3.2.1. - Informations- und Absatzförderungsmaßnahmen
A150: -
A151: 4.1.1. - Investitionen in die landwirtschaftliche Erzeugung
A152: 4.2.1. A) - Verarbeitung, Vermarktung und Entwicklung landwirtschaftlicher Erzeugnisse (Bewilligung AWS)
A153: 4.2.1. B) - Verarbeitung, Vermarktung und Entwicklung landwirtschaftlicher Erzeugnisse (Bewilligung Bundesländer)
A154: 4.3.1. - Investitionen in überbetriebliche Bewässerungsinfrastruktur
A155: 4.3.2. - Investitionen in die Infrastruktur für die Entwicklung, Modernisierung und Anpassung der Forstwirtschaft
A156: 4.4.1. - Nichtproduktive Investitionen – Ökologische Verbesserung von Gewässern in landwirtschaftlich geprägten Regionen
A157: 4.4.2. - Nichtproduktive Investitionen – Investitionen zur Stabilisierung von Rutschungen
A158: 4.4.3. - Nichtproduktive Investitionen – Ökologische Agrarinfrastruktur zur Flurentwicklung
A159: -
A160: 6.1.1. - Existenzgründungsbeihilfen für JunglandwirtInnen
A161: 6.4.1. - Diversifizierung hin zu nichtlandwirtschaftlichen Tätigkeiten
A162: 6.4.2. - Diversifizierung lw. und fw. Betriebe durch Energie aus nachwachsenden Rohstoffen sowie Energiedienstleistungen
A163: 6.4.3. - Photovoltaik in der Landwirtschaft
A164: 6.4.4. - Gründung von innovativen Kleinunternehmen im ländlichen Raum
A165: 6.4.5. - Förderung von Nahversorgungsbetrieben einschließlich gewerblicher Beherbergungs- und Gastronomiebetriebe
A166: -
A167: 7.1.1. A) - Pläne und Entwicklungskonzepte zur Erhaltung des natürlichen Erbes - Naturschutz - Bund
A168: 7.1.1. A) - Pläne und Entwicklungskonzepte zur Erhaltung des natürlichen Erbes - Naturschutz - Länder
A169: 7.1.1. B) - Pläne und Entwicklungskonzepte zur Erhaltung des natürlichen Erbes - Nationalparks
A170: 7.1.2. - Pläne und Entwicklungskonzepte zur Dorferneuerung
A171: 7.1.3. - Lokale Agenda 21 - Bund
A172: 7.1.3. - Lokale Agenda 21 - Länder
A173: 7.2.1. - Ländliche Verkehrsinfrastruktur
A174: 7.2.2. - Investitionen in erneuerbare Energien
A175: 7.2.3. - Umsetzung von Klima- und Energieprojekten auf lokaler Ebene
A176: 7.3.1. - Breitbandinfrastruktur in ländlichen Gebieten
A177: 7.4.1. A) - Soziale Angelegenheiten - BMASK
A178: 7.4.1. B) - Soziale Angelegenheiten - BMG
A179: 7.4.2. - Klimafreundliche Mobilitätslösungen (klimaaktiv mobil)
A180: 7.5.1. A) - Investitionen in kleine touristische Infrastruktur - BMLRT
A181: 7.5.1. B) - Investitionen in kleine touristische Infrastruktur - Forst
A182: 7.5.1. C) - Investitionen in kleine touristische Infrastruktur - Länder
A183: 7.6.1. A) - Studien und Investitionen zur Erhaltung, Wiederherstellung und Verbesserung des natürlichen Erbes - Naturschutz - Bund
A184: 7.6.1. A) - Studien und Investitionen zur Erhaltung, Wiederherstellung und Verbesserung des natürlichen Erbes - Naturschutz - Länder
A185: 7.6.1. B) - Studien und Investitionen zur Erhaltung, Wiederherstellung und Verbesserung des natürlichen Erbes - Nationalparks
A186: 7.6.1. C) - Studien und Investitionen zur Erhaltung, Wiederherstellung und Verbesserung des natürlichen Erbes - Forst - Bund
A187: 7.6.1. C) - Studien und Investitionen zur Erhaltung, Wiederherstellung und Verbesserung des natürlichen Erbes - Forst - Länder
A188: 7.6.2. - Umsetzung von Plänen zur Dorferneuerung und Gemeindeentwicklung
A189: 7.6.3. - Erhaltung und Entwicklung der Kulturlandschaft
A190: 7.6.4. - Überbetriebliche Maßnahmen für die Bereiche Wald und Schutz vor Naturgefahren
A191: 7.6.5. - Stärkung der Potenziale des alpinen ländlichen Raums
A192: -
A193: 8.1.1. - Aufforstung und Anlage von Wäldern
A194: 8.4.1. - Vorbeugung von Schäden und Wiederherstellung von Wäldern nach Naturkatastrophen und Katastrophenereignissen - Forstschutz
A195: 8.5.1. - Investitionen zur Stärkung von Resistenz und ökologischem Wert des Waldes - Öffentlicher Wert & Schutz vor Naturgefahren
A196: 8.5.2. - Investitionen zur Stärkung von Resistenz und ökologischem Wert des Waldes - Genetische Ressourcen
A197: 8.5.3. - Investitionen zur Stärkung des ökologischen Werts der Waldökosysteme - Wald-Ökologie-Programm
A198: 8.6.1. - Investitionen in Forsttechniken, Verarbeitung, Mobilisierung und Vermarktung forstwirtschaftlicher Erzeugnisse
A199: 8.6.2. - Erstellung von waldbezogenen Plänen auf betrieblicher Ebene
A200: -
A201: 15.1.1. - Erhaltung von ökologisch wertvollen/seltenen Waldflächen /-gesellschaften
A202: 15.2.1. - Erhaltung und Verbesserung der genetischen Ressourcen des Waldes
A203: -
A204: 16.01.1. - Unterstützung beim Aufbau & Betrieb operationeller Gruppen der EIP für lw. Produktivität & Nachhaltigkeit
A205: 16.02.1. - Unterstützung bei der Entwicklung neuer Erzeugnisse, Verfahren & Technologien der Land-, Ernährungs- & Forstwirtschaft
A206: 16.02.2. A) - Unterstützung bei der Entwicklung von innovativen Pilotprojekten im Tourismus - BMLRT
A207: 16.02.2. B) - Unterstützung bei der Entwicklung von innovativen Pilotprojekten im Tourismus - Länder
A208: 16.03.1. A) - Zusammenarbeit von kleinen WirtschaftsteilnehmerInnen - Arbeitsabläufe, Ressourcennutzung und Tourismusdienstleistungen
A209: 16.03.1. A) - Zusammenarbeit von kleinen WirtschaftsteilnehmerInnen - Arbeitsabläufe, Ressourcennutzung und Tourismusdienstleistungen - BMLRT
A210: 16.03.1. B) - Zusammenarbeit von kleinen WirtschaftsteilnehmerInnen - Arbeitsabläufe, Ressourcennutzung und Tourismusdienstleistungen - BMLRT
A211: 16.03.1. C) - Zusammenarbeit von kleinen WirtschaftsteilnehmerInnen - Arbeitsabläufe, Ressourcennutzung und Tourismusdienstleistungen - Länder
A212: 16.03.2. - Zusammenarbeit von Kleinstunternehmen im ländlichen Raum
A213: 16.04.1. - Schaffung und Entwicklung von kurzen Versorgungsketten und lokalen Märkten sowie unterstützende Absatzförderung
A214: 16.05.1. - Stärkung der horizontalen und vertikalen Zusammenarbeit zwischen AkteurInnen im forst- und wasserwirtschaftlichen Sektor
A215: 16.05.2. A) - Stärkung der Zusammenarbeit von AkteurInnen und Strukturen zur Erhaltung des natürlichen Erbes & des Umweltschutzes - Naturschutz
A216: 16.05.2. A) - Stärkung der Zusammenarbeit von AkteurInnen und Strukturen zur Erhaltung des natürlichen Erbes & des Umweltschutzes - Naturschutz - Länder
A217: 16.05.2. B) - Stärkung der Zusammenarbeit von AkteurInnen und Strukturen zur Erhaltung des natürlichen Erbes & des Umweltschutzes - Umweltschutz
A218: 16.05.2. C) - Stärkung der Zusammenarbeit von AkteurInnen und Strukturen zur Erhaltung des natürlichen Erbes & des Umweltschutzes - Nationalparks
A219: 16.08.1. - Waldbezogene Pläne auf überbetrieblicher Ebene
A220: 16.09.1. - Förderung horizontaler & vertikaler Zusammenarbeit lw. & fw. AkteurInnen zur Schaffung & Entwicklung v. Sozialleistungen - BMLRT
A221: 16.10.1. - Einrichtung und Betrieb von Clustern - BMLRT
A222: 16.10.2. - Einrichtung und Betrieb von Netzwerken - BMLRT
A223: 16.10.3. - Zusammenarbeit: Erzeugergemeinschaften /-organisationen, Genossenschaften und Branchenverbände - BMLRT
A224: -
A225: 19.1.1. - Erstellung der lokalen Entwicklungsstrategie - Länder
A226: 19.1.1. - Erstellung der lokalen Entwicklungsstrategie
A227: 19.2.1. - Umsetzung der lokalen Entwicklungsstrategie - Länder
A228: 19.2.1. - Umsetzung der lokalen Entwicklungsstrategie
A229: 19.3.1. - Umsetzung von nationalen oder transnationalen Kooperationsprojekten - Länder
A230: 19.3.1. - Umsetzung von nationalen oder transnationalen Kooperationsprojekten
A231: 19.4.1. - Laufende Kosten des LAG-Managements und Sensibilisierung - Länder
A232: 19.4.1. - Laufende Kosten des LAG-Managements und Sensibilisierung
A233: -
A234: 20.1. - Technische Hilfe (außer Netzwerk)
A235: 20.2. - Technische Hilfe - Netzwerk

Sheet TABLE Fördergeber (hidden)
A1: Vorhabensart (alphabet. Sortiert) | B1: Fördergeber
A2: - | B2: -
A3: 15.1.1. - Erhaltung von ökologisch wertvollen/seltenen Waldflächen /-gesellschaften | B3: BMLRT/LE1420/LD/EU
A4: 15.2.1. - Erhaltung und Verbesserung der genetischen Ressourcen des Waldes | B4: BMLRT/LE1420/LD/EU
A5: 16.01.1. - Unterstützung beim Aufbau & Betrieb operationeller Gruppen der EIP für lw. Produktivität & Nachhaltigkeit | B5: BMLRT/LE1420/LD/EU
A6: 16.02.1. - Unterstützung bei der Entwicklung neuer Erzeugnisse, Verfahren & Technologien der Land-, Ernährungs- & Forstwirtschaft | B6: BMLRT/LE1420/LD/EU
A7: 16.02.2. A) - Unterstützung bei der Entwicklung von innovativen Pilotprojekten im Tourismus - BMLRT | B7: BMLRT/LE1420/EU
A8: 16.02.2. B) - Unterstützung bei der Entwicklung von innovativen Pilotprojekten im Tourismus - Länder | B8: LD/LE1420/EU
A9: 16.03.1. A) - Zusammenarbeit von kleinen WirtschaftsteilnehmerInnen - Arbeitsabläufe, Ressourcennutzung und Tourismusdienstleistungen | B9: BMLRT/LE1420/LD/EU
A10: 16.03.1. A) - Zusammenarbeit von kleinen WirtschaftsteilnehmerInnen - Arbeitsabläufe, Ressourcennutzung und Tourismusdienstleistungen - BMLRT | B10: BMLRT/LE1420/EU
A11: 16.03.1. B) - Zusammenarbeit von kleinen WirtschaftsteilnehmerInnen - Arbeitsabläufe, Ressourcennutzung und Tourismusdienstleistungen - BMLRT | B11: BMLRT/LE1420/EU
A12: 16.03.1. C) - Zusammenarbeit von kleinen WirtschaftsteilnehmerInnen - Arbeitsabläufe, Ressourcennutzung und Tourismusdienstleistungen - Länder | B12: LD/LE1420/EU
A13: 16.03.2. - Zusammenarbeit von Kleinstunternehmen im ländlichen Raum | B13: BMDW/LE1420/EU
A14: 16.04.1. - Schaffung und Entwicklung von kurzen Versorgungsketten und lokalen Märkten sowie unterstützende Absatzförderung | B14: BMLRT/LE1420/LD/EU
A15: 16.05.1. - Stärkung der horizontalen und vertikalen Zusammenarbeit zwischen AkteurInnen im forst- und wasserwirtschaftlichen Sektor | B15: BMLRT/LE1420/LD/EU
A16: 16.05.2. A) - Stärkung der Zusammenarbeit von AkteurInnen und Strukturen zur Erhaltung des natürlichen Erbes & des Umweltschutzes - Naturschutz | B16: BMLRT/LE1420/EU
A17: 16.05.2. A) - Stärkung der Zusammenarbeit von AkteurInnen und Strukturen zur Erhaltung des natürlichen Erbes & des Umweltschutzes - Naturschutz - Länder | B17: LD/LE1420/EU
A18: 16.05.2. B) - Stärkung der Zusammenarbeit von AkteurInnen und Strukturen zur Erhaltung des natürlichen Erbes & des Umweltschutzes - Umweltschutz | B18: BMLRT/LE1420/EU
A19: 16.05.2. C) - Stärkung der Zusammenarbeit von AkteurInnen und Strukturen zur Erhaltung des natürlichen Erbes & des Umweltschutzes - Nationalparks | B19: BMK/LE1420/EU
A20: 16.08.1. - Waldbezogene Pläne auf überbetrieblicher Ebene | B20: BMLRT/LE1420/LD/EU
A21: 16.09.1. - Förderung horizontaler & vertikaler Zusammenarbeit lw. & fw. AkteurInnen zur Schaffung & Entwicklung v. Sozialleistungen - BMLRT | B21: BMLRT/LE1420/LD/EU
A22: 16.10.1. - Einrichtung und Betrieb von Clustern - BMLRT | B22: BMLRT/LE1420/LD/EU
A23: 16.10.2. - Einrichtung und Betrieb von Netzwerken - BMLRT | B23: BMLRT/LE1420/LD/EU
A24: 16.10.3. - Zusammenarbeit: Erzeugergemeinschaften /-organisationen, Genossenschaften und Branchenverbände - BMLRT | B24: BMLRT/LE1420/LD/EU
A25: 19.1.1. - Erstellung der lokalen Entwicklungsstrategie | B25: BMLRT/LE1420/LD/LEADER/EU
A26: 19.1.1. - Erstellung der lokalen Entwicklungsstrategie - Länder | B26: LD/LE1420/LEADER/EU
A27: 19.2.1. - Umsetzung der lokalen Entwicklungsstrategie | B27: BMLRT/LE1420/LD/LEADER/EU
A28: 19.2.1. - Umsetzung der lokalen Entwicklungsstrategie - Länder | B28: LD/LE1420/LEADER/EU
A29: 19.3.1. - Umsetzung von nationalen oder transnationalen Kooperationsprojekten | B29: BMLRT/LE1420/LD/LEADER/EU
A30: 19.3.1. - Umsetzung von nationalen oder transnationalen Kooperationsprojekten - Länder | B30: LD/LE1420/LEADER/EU
A31: 19.4.1. - Laufende Kosten des LAG-Managements und Sensibilisierung | B31: BMLRT/LE1420/LD/LEADER/EU
A32: 19.4.1. - Laufende Kosten des LAG-Managements und Sensibilisierung - Länder | B32: LD/LE1420/LEADER/EU
A33: 2.1.1. A) - Inanspruchnahme von Beratungsleistungen - Landwirtschaft | B33: BMLRT/LE1420/LD/EU
A34: 2.1.1. B) - Inanspruchnahme von Beratungsleistungen - Forstwirtschaft | B34: BMLRT/LE1420/LD/EU
A35: 2.1.1. C) - Inanspruchnahme von Beratungsleistungen - KMU | B35: LD/LE1420/EU
A36: 2.3.1. - Ausbildung von BeraterInnen | B36: BMLRT/LE1420/LD/EU
A37: 20.1. - Technische Hilfe (außer Netzwerk) | B37: BMLRT/LE1420/LD/EU
A38: 20.2. - Technische Hilfe - Netzwerk | B38: BMLRT/LE1420/LD/EU
A39: 3.2.1. - Informations- und Absatzförderungsmaßnahmen | B39: BMLRT/LE1420/LD/EU
A40: 4.1.1. - Investitionen in die landwirtschaftliche Erzeugung | B40: BMLRT/LE1420/LD/EU
A41: 4.2.1. A) - Verarbeitung, Vermarktung und Entwicklung landwirtschaftlicher Erzeugnisse (Bewilligung AWS) | B41: BMLRT/LE1420/LD/EU
A42: 4.2.1. B) - Verarbeitung, Vermarktung und Entwicklung landwirtschaftlicher Erzeugnisse (Bewilligung Bundesländer) | B42: BMLRT/LE1420/LD/EU
A43: 4.3.1. - Investitionen in überbetriebliche Bewässerungsinfrastruktur | B43: BMLRT/LE1420/LD/EU
A44: 4.3.2. - Investitionen in die Infrastruktur für die Entwicklung, Modernisierung und Anpassung der Forstwirtschaft | B44: BMLRT/LE1420/LD/EU
A45: 4.4.1. - Nichtproduktive Investitionen – Ökologische Verbesserung von Gewässern in landwirtschaftlich geprägten Regionen | B45: BMLRT/LE1420/LD/EU
A46: 4.4.2. - Nichtproduktive Investitionen – Investitionen zur Stabilisierung von Rutschungen | B46: BMLRT/LE1420/LD/EU
A47: 4.4.3. - Nichtproduktive Investitionen – Ökologische Agrarinfrastruktur zur Flurentwicklung | B47: BMLRT/LE1420/LD/EU
A48: 6.1.1. - Existenzgründungsbeihilfen für JunglandwirtInnen | B48: BMLRT/LE1420/LD/EU
A49: 6.4.1. - Diversifizierung hin zu nichtlandwirtschaftlichen Tätigkeiten | B49: BMLRT/LE1420/LD/EU
A50: 6.4.2. - Diversifizierung lw. und fw. Betriebe durch Energie aus nachwachsenden Rohstoffen sowie Energiedienstleistungen | B50: BMLRT/LE1420/LD/EU
A51: 6.4.3. - Photovoltaik in der Landwirtschaft | B51: BMK/LE1420/EU
A52: 6.4.4. - Gründung von innovativen Kleinunternehmen im ländlichen Raum | B52: BMDW/LE1420/EU
A53: 6.4.5. - Förderung von Nahversorgungsbetrieben einschließlich gewerblicher Beherbergungs- und Gastronomiebetriebe | B53: LD/LE1420/EU
A54: 7.1.1. A) - Pläne und Entwicklungskonzepte zur Erhaltung des natürlichen Erbes - Naturschutz - Bund | B54: BMLRT/LE1420/EU
A55: 7.1.1. A) - Pläne und Entwicklungskonzepte zur Erhaltung des natürlichen Erbes - Naturschutz - Länder | B55: LD/LE1420/EU
A56: 7.1.1. B) - Pläne und Entwicklungskonzepte zur Erhaltung des natürlichen Erbes - Nationalparks | B56: BMK/LE1420/EU
A57: 7.1.2. - Pläne und Entwicklungskonzepte zur Dorferneuerung | B57: LD/LE1420/EU
A58: 7.1.3. - Lokale Agenda 21 - Bund | B58: BMK/LE1420/EU
A59: 7.1.3. - Lokale Agenda 21 - Länder | B59: LD/LE1420/EU
A60: 7.2.1. - Ländliche Verkehrsinfrastruktur | B60: BMLRT/LE1420/LD/EU
A61: 7.2.2. - Investitionen in erneuerbare Energien | B61: BMK/LE1420/EU
A62: 7.2.3. - Umsetzung von Klima- und Energieprojekten auf lokaler Ebene | B62: BMK/LE1420/EU
A63: 7.3.1. - Breitbandinfrastruktur in ländlichen Gebieten | B63: BMLRT/LE1420/EU
A64: 7.4.1. A) - Soziale Angelegenheiten - BMASK | B64: LD/LE1420/EU
A65: 7.4.1. B) - Soziale Angelegenheiten - BMG | B65: LD/LE1420/EU
A66: 7.4.2. - Klimafreundliche Mobilitätslösungen (klimaaktiv mobil) | B66: BMK/LE1420/EU
A67: 7.5.1. A) - Investitionen in kleine touristische Infrastruktur - BMLRT | B67: BMLRT/LE1420/EU
A68: 7.5.1. B) - Investitionen in kleine touristische Infrastruktur - Forst | B68: LD/LE1420/EU
A69: 7.5.1. C) - Investitionen in kleine touristische Infrastruktur - Länder | B69: LD/LE1420/EU
A70: 7.6.1. A) - Studien und Investitionen zur Erhaltung, Wiederherstellung und Verbesserung des natürlichen Erbes - Naturschutz - Bund | B70: BMLRT/LE1420/EU
A71: 7.6.1. A) - Studien und Investitionen zur Erhaltung, Wiederherstellung und Verbesserung des natürlichen Erbes - Naturschutz - Länder | B71: LD/LE1420/EU
A72: 7.6.1. B) - Studien und Investitionen zur Erhaltung, Wiederherstellung und Verbesserung des natürlichen Erbes - Nationalparks | B72: BMK/LE1420/EU
A73: 7.6.1. C) - Studien und Investitionen zur Erhaltung, Wiederherstellung und Verbesserung des natürlichen Erbes - Forst - Bund | B73: BMLRT/LE1420/EU
A74: 7.6.1. C) - Studien und Investitionen zur Erhaltung, Wiederherstellung und Verbesserung des natürlichen Erbes - Forst - Länder | B74: LD/LE1420/EU
A75: 7.6.2. - Umsetzung von Plänen zur Dorferneuerung und Gemeindeentwicklung | B75: LD/LE1420/EU
A76: 7.6.3. - Erhaltung und Entwicklung der Kulturlandschaft | B76: BMLRT/LE1420/LD/EU
A77: 7.6.4. - Überbetriebliche Maßnahmen für die Bereiche Wald und Schutz vor Naturgefahren | B77: BMLRT/LE1420/LD/EU
A78: 7.6.5. - Stärkung der Potenziale des alpinen ländlichen Raums | B78: BMLRT/LE1420/EU
A79: 8.1.1. - Aufforstung und Anlage von Wäldern | B79: BMLRT/LE1420/LD/EU
A80: 8.4.1. - Vorbeugung von Schäden und Wiederherstellung von Wäldern nach Naturkatastrophen und Katastrophenereignissen - Forstschutz | B80: BMLRT/LE1420/LD/EU
A81: 8.5.1. - Investitionen zur Stärkung von Resistenz und ökologischem Wert des Waldes - Öffentlicher Wert & Schutz vor Naturgefahren | B81: BMLRT/LE1420/LD/EU
A82: 8.5.2. - Investitionen zur Stärkung von Resistenz und ökologischem Wert des Waldes - Genetische Ressourcen | B82: BMLRT/LE1420/LD/EU
A83: 8.5.3. - Investitionen zur Stärkung des ökologischen Werts der Waldökosysteme - Wald-Ökologie-Programm | B83: BMLRT/LE1420/LD/EU
A84: 8.6.1. - Investitionen in Forsttechniken, Verarbeitung, Mobilisierung und Vermarktung forstwirtschaftlicher Erzeugnisse | B84: BMLRT/LE1420/LD/EU
A85: 8.6.2. - Erstellung von waldbezogenen Plänen auf betrieblicher Ebene | B85: BMLRT/LE1420/LD/EU
A86: M 1 A) - Wissenstransfer und Informationsmaßnahmen in der Land- und Forstwirtschaft - Landwirtschaft | B86: BMLRT/LE1420/LD/EU
A87: M 1 B) - Wissenstransfer und Informationsmaßnahmen in der Land- und Forstwirtschaft - Forstwirtschaft | B87: BMLRT/LE1420/LD/EU

Sheet TEMPLATE Auswahl Belegaufst. (hidden)
A1: Zahlungsantrag - Stammdaten/Übersicht
E2: RL/AMA v469.25 / Jan. 2022
B3: Betriebs-/Klientennummer:
B5: Förderungswerber:
B7: Antragsnummer:
B9: Vorsteuerabzugsberechtigung: | C9: =C10 -> Nein
C10: =IF(D10=1,"Ja","Nein") -> Nein | D10: 2
B12: Genehmigter Zeitraum für | C12: Beginn | D12: Ende
B13: Kostenanerkennung:
B31: Buttons nur zur internen Verwendung der Bewilligenden Stelle
D37: U

Sheet Auswahl Belegaufstellungen (hidden)
A1: Zahlungsantrag - Stammdaten/Übersicht
E2: RL/AMA v469.25 / Jan. 2022
B3: Betriebs-/Klientennummer: | C3: =TRIM('Zahlungsantrag LEW14-20'!PaymAppl_ApplicantID) -> 
B5: Förderungswerber: | C5: =TRIM('Zahlungsantrag LEW14-20'!PaymAppl_ApplicantName) -> 
B7: Antragsnummer: | C7: =TRIM('Zahlungsantrag LEW14-20'!PaymAppl_ApplicationID) & 'Zahlungsantrag LEW14-20'!PaymAppl_PartialPaymTitle -> 
B9: Vorsteuerabzugsberechtigung: | C9: =TRIM('Zahlungsantrag LEW14-20'!PaymAppl_TaxDeduct) -> Ja
C10: =IF(D10=1,"Ja","Nein") -> Nein | D10: 2
B12: Genehmigter Zeitraum für | C12: Beginn | D12: Ende
B13: Kostenanerkennung: | C13: =IF(TRIM('Zahlungsantrag LEW14-20'!PaymAppl_SupportPeriodStart)="","",'Zahlungsantrag LEW14-20'!PaymAppl_SupportPeriodStart) ->  | D13: =IF(TRIM('Zahlungsantrag LEW14-20'!PaymAppl_SupportPeriodEnd)="","",'Zahlungsantrag LEW14-20'!PaymAppl_SupportPeriodEnd) -> 
B31: Buttons nur zur internen Verwendung der Bewilligenden Stelle
D37: U

Sheet Übersicht
A1: Übersicht
L2: RL/AMA v469.25 / Jan. 2022
A3: Betriebs-/Klientennummer: | C3: =TRIM('Auswahl Belegaufstellungen'!Stm_ApplicantID) -> 
A5: Förderungswerber: | C5: =TRIM('Auswahl Belegaufstellungen'!Stm_ApplicantName) -> 
A7: Antragsnummer: | C7: =TRIM('Auswahl Belegaufstellungen'!Stm_ApplicationID) -> 
A9: Vorsteuerabzugsberechtigung: | C9: ='Auswahl Belegaufstellungen'!Stm_TaxDeduct -> Ja
A11: Genehmigter Zeitraum für | D11: Beginn | E11: --- | F11: Ende
A12: Kostenanerkennung: | D12: =IF(TRIM('Auswahl Belegaufstellungen'!Stm_SupportPeriodStart)="","",'Auswahl Belegaufstellungen'!Stm_SupportPeriodStart) ->  | E12: --- | F12: =IF(TRIM('Auswahl Belegaufstellungen'!Stm_SupportPeriodEnd)="","",'Auswahl Belegaufstellungen'!Stm_SupportPeriodEnd) -> 
B14: Gruppierung nach: | C14: Teilprojekt
A16: Buttons zur internen Verwendung der Bewilligenden Stelle
A41: 255 | B41: 1023 | C41: 1 | D41: 1 | E41: Teilprojekt | F41: Fördergegenstand | G41: Teilprojekt | H41: Codierung / Fördergegenstand
A42: Gesamtsumme
A43: Tabellenblatt | B43: Kostenart | C43: Fördergegenstand | D43: Gesamtkosten brutto | E43: Gesamtkosten netto | F43: eingereichte Kosten | G43: verminderte Kosten nach VWK | H43: anrechenbare Kosten nach VWK | I43: verminderte Kosten nach VOK | J43: anrechenbare Kosten nach VOK | K43: Sanktions- relevante Kosten gemäß Art. 35 | L43: Einnahmen
B45: Summe:
B47: Gesamtsumme:
A48: Keine Belegaufstellungen verfügbar
A49: Tabellenblatt | B49: Kostenart | C49: Fördergegenstand | D49: Gesamtkosten brutto | E49: Gesamtkosten netto | F49: eingereichte Kosten | G49: verminderte Kosten nach VWK | H49: anrechenbare Kosten nach VWK | I49: verminderte Kosten nach VOK | J49: anrechenbare Kosten nach VOK | K49: Sanktions- relevante Kosten gemäß Art. 35 | L49: Einnahmen
B50: Summe:
A52: Gesamtsumme
A53: Tabellenblatt | B53: Kostenart | C53: Fördergegenstand | D53: Gesamtkosten brutto | E53: Gesamtkosten netto | F53: eingereichte Kosten | G53: verminderte Kosten nach VWK | H53: anrechenbare Kosten nach VWK | I53: verminderte Kosten nach VOK | J53: anrechenbare Kosten nach VOK | K53: Sanktions- relevante Kosten gemäß Art. 35 | L53: Einnahmen
B54: Gesamtsumme:

Sheet TEMPLATE Übersicht (hidden)
A1: Übersicht
L2: RL/AMA v469.25 / Jan. 2022
A3: Betriebs-/Klientennummer: | C3: =TRIM(Stm_ApplicantID) -> 
A5: Förderungswerber: | C5: =TRIM(Stm_ApplicantName) -> 
A7: Antragsnummer: | C7: =TRIM(Stm_ApplicationID) -> 
A9: Vorsteuerabzugsberechtigung: | C9: =Stm_TaxDeduct -> Nein
A11: Genehmigter Zeitraum für | D11: Beginn | E11: --- | F11: Ende
A12: Kostenanerkennung: | D12: =IF(TRIM(Stm_SupportPeriodStart)="","",Stm_SupportPeriodStart) ->  | E12: --- | F12: =IF(TRIM(Stm_SupportPeriodEnd)="","",Stm_SupportPeriodEnd) -> 
B14: Gruppierung nach: | C14: Fördergegenstand
A16: Buttons zur internen Verwendung der Bewilligenden Stelle
A41: 31 | B41: 1023 | C41: 1 | D41: 1 | F41: Fördergegenstand | G41: Teilprojekt | H41: Codierung / Fördergegenstand
A42: Gesamtsumme
A43: Tabellenblatt | B43: Kostenart | C43: Fördergegenstand | D43: Gesamtkosten brutto | E43: Gesamtkosten netto | F43: eingereichte Kosten | G43: verminderte Kosten nach VWK | H43: anrechenbare Kosten nach VWK | I43: verminderte Kosten nach VOK | J43: anrechenbare Kosten nach VOK | K43: Sanktions- relevante Kosten gemäß Art. 35 | L43: Einnahmen
B45: Summe:
B47: Gesamtsumme:

Sheet TEMPLATE Invest & Sachkosten (hidden)
A1: : | B1: Investkosten | C1: Zahlungsantrag - Belegaufstellung für Investitionskosten
A2: : | B2: Sachkosten | C2: Zahlungsantrag - Belegaufstellung für Sachkosten
A3: : | B3: Invest- & Sachkosten | C3: Zahlungsantrag - Belegaufstellung für Investitions- und Sachkosten
A4: UBVbv | R4: RL/AMA v469.25 / Jan. 2022
A5: UBVbv | C5: Betriebs-/Klientennummer:
A6: UBVbv
A7: UBVbv | C7: Förderungswerber:
A8: UBVbv
A9: UBVbv | C9: Antragsnummer:
A10: UBVbv
A11: UBVbv | C11: Fördergegenstand:
A13: UBVbv
A14: UBVbv | C14: Vorsteuerabzugsberechtigung: | E14: =E15 -> Ja | H14: Nein
E15: =IF(F15=1,"Ja","Nein") -> Ja | F15: 1
A16: UBVbv
A17: UBVbv | C17: Genehmigter Zeitraum für | E17: Beginn | F17: Ende
A18: UBVbv | C18: Kostenanerkennung:
A19: UBVbv
A20: UBVbv | C20: Buttons zur internen Verwendung der Bewilligenden Stelle
A21: UBVbv
A22: UBVbv
A23: - | B23: - | C23: UBVbv | D23: UBVbv | E23: UBVbv | F23: UBVbv | G23: UBV | H23: UBVbv | I23: UBV | J23: UBVbv | L23: UBVbv | N23: UBV | O23: UBV | P23: UBV | Q23: UBV | R23: UBVbv | S23: BV | T23: BV | U23: BV | V23: BV | W23: BV | X23: BV | Y23: BV | Z23: BV | AA23: BVbv | AB23: BVbv | AC23: V | AD23: V | AE23: V | AF23: V | AG23: V | AH23: V | AI23: V | AJ23: V | AK23: Vv | AL23: Vv | AM23: BV | AN23: BV | AO23: BVbv | AP23: BVbv
A24: UBVbv | C24: Belege | S24: von der Bewilligenden Stelle im Rahmen der VWK auszufüllen | AC24: von VOK auszufüllen | AD24: von der Bewilligenden Stelle auszufüllen (im Rahmen einer VOK) | AM24: von der Bewilligenden Stelle auszufüllen
A25: UBVbv | B25: Head | C25: lfd. Nr. | D25: Belegnr. / Rechnungsnummer | E25: Belegdatum | F25: Firma bzw. Name | G25: Bezeichnung (Ware, Leistung) | H25: Zuordnung zu Teilprojekt (falls erforderlich) | I25: Datum Saldierung (Zahlungs- datum) | J25: Belegbetrag brutto | K25: MwSt. Satz | L25: Belegbetrag netto | M25: Belegbetrag (interne Rechenbasis) | N25: davon nicht anrechenbare Kosten | O25: nicht anrechenbare Skonti (%) | P25: anrechenbare Kosten | Q25: Abzüge in % | R25: eingereichte Kosten | S25: Codierung (optional) | T25: nicht anrechenbare zu vermindernde Kosten durch VWK | U25: nicht anrechenbare zu vermindernde Skonti (%) durch VWK | V25: verminderte Abzüge in % nach VWK | W25: verminderte Kosten nach VWK | X25: nicht anrechenbare zu sanktionierende Kosten durch VWK | Y25: nicht anrechenbare zu sanktionierende Skonti (%) durch VWK | Z25: sanktionierte Abzüge in % nach VWK | AA25: anrechenbare Kosten nach VWK | AB25: Anmerkung zur VWK | AC25: Feststellungen der VOK | AD25: nicht anrechenbare zu vermindernde Kosten durch VOK | AE25: nicht anrechenbare zu vermindernde Skonti (%) durch VOK | AF25: verminderte Abzüge in % nach VOK | AG25: verminderte Kosten nach VOK | AH25: nicht anrechenbare zu sanktionierende Kosten durch VOK | AI25: nicht anrechenbare zu sanktionierende Skonti (%) durch VOK | AJ25: sanktionierte Abzüge in % nach VOK | AK25: anrechenbare Kosten nach VOK | AL25: Anmerkung zur VOK | AM25: ermittelte Kosten gemäß Art. 35 | AN25: Sanktion in % gemäß Art. 35 | AO25: sanktionsrelevante Kosten gemäß Art. 35 | AP25: Anmerkung zur Sanktion gemäß Art. 35 (VO 640/2014)
A26: UBVbv | B26: Receipt | C26: 1 | K26: 0.2 | L26: =IF(OR(ISBLANK(J26),ISBLANK(K26)),0,ROUND(J26 / (1+K26),2)) -> 0 | M26: =IF($E$14="Nein",J26,L26) -> 0 | P26: =ROUND((M26-N26)*(1-O26),2) -> 0 | R26: =ROUND(P26*(1-Q26),2) -> 0 | W26: =ROUND((M26-N26-T26)*(1-O26-U26)*(1-Q26-V26),2) -> 0 | AA26: =ROUND((M26-N26-T26-X26)*(1-O26-U26-Y26)*(1-Q26-V26-Z26),2) -> 0 | AG26: =ROUND((M26-N26-T26-X26-AD26)*(1-O26-U26-Y26-AE26)*(1-Q26-V26-Z26-AF26),2) -> 0 | AK26: =ROUND((M26-N26-T26-X26-AD26-AH26)*(1-O26-U26-Y26-AE26-AI26)*(1-Q26-V26-Z26-AF26-AJ26),2) -> 0 | AM26: =AK26 -> 0 | AO26: =AM26*AN26 -> 0
A27: UBVbv | B27: Receipt | C27: =C26+1 -> 2 | K27: 0.2 | L27: 0 | M27: 0 | P27: 0 | R27: 0 | W27: 0 | AA27: 0 | AG27: 0 | AK27: 0 | AM27: 0 | AO27: 0
A28: UBVbv | B28: Receipt | C28: 3 | K28: 0.2 | L28: 0 | M28: 0 | P28: 0 | R28: 0 | W28: 0 | AA28: 0 | AG28: 0 | AK28: 0 | AM28: 0 | AO28: 0
A29: UBVbv | B29: Receipt | C29: 4 | K29: 0.2 | L29: 0 | M29: 0 | P29: 0 | R29: 0 | W29: 0 | AA29: 0 | AG29: 0 | AK29: 0 | AM29: 0 | AO29: 0
A30: UBVbv | B30: Receipt | C30: 5 | K30: 0.2 | L30: 0 | M30: 0 | P30: 0 | R30: 0 | W30: 0 | AA30: 0 | AG30: 0 | AK30: 0 | AM30: 0 | AO30: 0
A31: UBVbv | B31: Receipt | C31: 6 | K31: 0.2 | L31: 0 | M31: 0 | P31: 0 | R31: 0 | W31: 0 | AA31: 0 | AG31: 0 | AK31: 0 | AM31: 0 | AO31: 0
A32: UBVbv | B32: Receipt | C32: 7 | K32: 0.2 | L32: 0 | M32: 0 | P32: 0 | R32: 0 | W32: 0 | AA32: 0 | AG32: 0 | AK32: 0 | AM32: 0 | AO32: 0
M33: 0 | P33: 0 | W33: 0 | AA33: 0 | AG33: 0 | AK33: 0
A34: UBVbv | B34: Receipt | C34: =C33+1 -> 1 | K34: 0.2 | L34: =IF(OR(ISBLANK(J34),ISBLANK(K34)),0,ROUND(J34 / (1+K34),2)) -> 0 | M34: 0 | P34: 0 | R34: =ROUND(P34*(1-Q34),2) -> 0 | W34: 0 | AA34: 0 | AG34: 0 | AK34: 0 | AM34: =AK34 -> 0 | AO34: =AM34*AN34 -> 0
A35: - | B35: Tail | C35: =C34+1 -> 2 | D35: -- Do not Erase -- | E35: -- Do not Erase -- | F35: -- Do not Erase -- | G35: -- Do not Erase -- | K35: 0.2 | L35: =IF(OR(ISBLANK(J35),ISBLANK(K35)),0,J35 / (1+K35)) -> 0 | M35: 0 | P35: 0 | R35: =P35*(1-Q35) -> 0 | W35: 0 | AA35: 0 | AG35: 0 | AK35: 0 | AM35: =AK35 -> 0 | AO35: =AM35*AN35 -> 0
A36: UBVbv | I36: Gesamtsumme: | J36: =ROUND(SUM(J26:J35),2) -> 0 | L36: =ROUND(SUM(L26:L35),2) -> 0 | P36: =SUM(P26:P35) -> 0 | R36: =SUM(R26:R35) -> 0 | T36: =ROUND(SUM(T26:T35),2) -> 0 | W36: =SUM(W26:W35) -> 0 | X36: =ROUND(SUM(X26:X35),2) -> 0 | AA36: =SUM(AA26:AA35) -> 0 | AD36: =ROUND(SUM(AD26:AD35),2) -> 0 | AG36: =SUM(AG26:AG35) -> 0 | AH36: =ROUND(SUM(AH26:AH35),2) -> 0 | AK36: =SUM(AK26:AK35) -> 0 | AO36: =SUM(AO26:AO35) -> 0
A37: U
A38: U
A39: U
A40: U
A41: U
A42: U | D42: Ort, Datum | H42: Unterschrift oder firmenmäßige Zeichnung
A43: U

Sheet TEMPLATE Export LEW Inv&Sachk. (hidden)
A1: LFNR | B1: BELEG_NUMMER | C1: BELEG_DATUM | D1: FIRMA | E1: BEZEICHNUNG | F1: TEILPROJEKT | G1: SALDO_DATUM | H1: BETRAG_BRUTTO | I1: MWST_DEZIMAL | J1: KOSTEN_NICHT_ANRECHENB | K1: SKONTI_NICHT_ANR | L1: ABZUEGE_PROZ
A2: 1 | B2: 01/2018 | C2: 2018-03-25 | D2: Tom Tom | E2: Kies | F2: Haus | G2: 2019-09-26 | H2: 4800 | I2: 20 | J2: 500 | K2: 3 | L2: 1

Sheet TABLE Units (hidden)
A1: Einheiten - Alphabetisch sortiert | D1: Einheiten - Sortiert für Pop-Up
A2: BEZEICHNUNG | B2: CODE | D2: BEZEICHNUNG
A3: Anzahl | B3: ANZ | D3: m² - Quadratmeter | F3: =VLOOKUP(D3,gblUnits_UnitCodeLookup,2,2) -> M2
A4: Anzahl/Stunde | B4: ANS | D4: ha - Hektar | F4: HA
A5: Ar | B5: A | D5: m³ - Kubikmeter | F5: M3
A6: Erntefestmeter | B6: EFM | D6: Stück | F6: STK
A7: Festmeter | B7: FM | D7: Laufmeter | F7: LFM
A8: ha - Hektar | B8: HA | D8: Festmeter | F8: FM
A9: Hektoliter/Stunde | B9: HLS | D9: Kilometer | F9: KM
A10: keine | B10: KEI | D10: Ar | F10: A
A11: Kilogramm | B11: KG | D11: Stunden | F11: STD
A12: Kilometer | B12: KM | D12: Erntefestmeter | F12: EFM
A13: Laufmeter | B13: LFM | D13: Liter | F13: LIT
A14: Liter | B14: LIT | D14: Anzahl | F14: ANZ
A15: m² - Quadratmeter | B15: M2 | D15: Hektoliter/Stunde | F15: HLS
A16: m³ - Kubikmeter | B16: M3 | D16: Anzahl/Stunde | F16: ANS
A17: Stück | B17: STK | D17: Tonne/Stunde | F17: TOS
A18: Stunden | B18: STD | D18: keine | F18: KEI
A19: Tonne | B19: T | D19: Tonne | F19: T
A20: Tonne/Stunde | B20: TOS | D20: Kilogramm | F20: KG
A26: BEZEICHNUNG | B26: CODE
A27: Arbeitsleistung | B27: ARBLEIST | D27: Arbeitsleistung
A28: Maschinenleistung | B28: MALEIST | D28: Maschinenleistung
A29: Material | B29: BEREITMA | D29: Bereitstellung von Materialleistungen

Sheet TEMPLATE Standardkosten (hidden)
A1: UBVbv | C1: Zahlungsantrag - Standardkosten
A2: UBVbv | N2: RL/AMA v469.25 / Jan. 2022
A3: UBVbv | C3: Betriebs-/Klientennummer:
A4: UBVbv
A5: UBVbv | C5: Förderungswerber:
A6: UBVbv
A7: UBVbv | C7: Antragsnummer:
A8: UBVbv
A9: UBVbv | C9: Fördergegenstand:
A11: UBVbv
A12: UBVbv | C12: Vorsteuerabzugsberechtigung: | F12: =F13 -> Ja
F13: =IF(G13=1,"Ja","Nein") -> Ja | G13: 1
A14: UBVbv
A15: UBVbv | C15: Genehmigter Zeitraum für | F15: Beginn | G15: Ende
A16: UBVbv | C16: Kostenanerkennung:
A17: UBVbv
A18: UBVbv | C18: Buttons zur internen Verwendung der Bewilligenden Stelle
A19: UBVbv
A20: UBVbv
A21: - | B21: - | C21: UBVbv | D21: UBVbv | E21: UBV | F21: UBVbv | G21: UBVbv | H21: UBVbv | I21: UBV | J21: UBV | K21: UBV | L21: UBV | M21: UBVbv | N21: UBV | O21: BV | P21: BV | Q21: BV | R21: BV | S21: BV | T21: BV | U21: BV | V21: BV | W21: BVbv | X21: BVbv | Y21: Vv | Z21: V | AA21: V | AB21: V | AC21: V | AD21: V | AE21: V | AF21: V | AG21: Vv | AH21: Vv | AI21: BV | AJ21: BV | AK21: BVbv | AL21: BVbv
A22: UBVbv | C22: Belege | O22: von der Bewilligenden Stelle im Rahmen der VWK auszufüllen | Y22: von VOK auszufüllen | Z22: von der Bewilligenden Stelle auszufüllen (im Rahmen einer VOK) | AI22: von der Bewilligenden Stelle auszufüllen
A23: UBVbv | B23: Head | C23: lfd. Nr. | D23: Datum | E23: Plausibilisierungsunterlage für Menge bzw €/ Einheit (BelegNr./ RechnungsNr.) (Nicht verpflichtend auszufüllen) | F23: Bezeichnung der Ware/ Leistung (lt. Beleg/Rechnung) (Nicht verpflichtend auszufüllen) | G23: Anmerkungen zur Plausibilisierungsunterlage (Nicht verpflichtend auszufüllen) | H23: Zuordnung zu Teilprojekt (falls erforderlich) | I23: Einheit (z.B. Stunde, Stück, kg,...) | J23: Menge | K23: € / Einheit | L23: Kosten | M23: Abzüge in % | N23: eingereichte Kosten | O23: Codierung (optional) | P23: nicht anrechenbare zu vermindernde Menge durch VWK | Q23: nicht anrechenbarer zu vermindernder Einheitssatz durch VWK | R23: nicht anrechenbare zu vermindernde Abzüge in % durch VWK | S23: verminderte Kosten nach VWK | T23: nicht anrechenbare zu sanktionierende Menge durch VWK | U23: nicht anrechenbarer zu sanktionierender Einheitskostensatz durch VWK | V23: nicht anrechenbare zu sanktionierende Abzüge in % durch VWK | W23: anrechenbare Kosten nach VWK | X23: Anmerkung zur VWK | Y23: Feststellungen der VOK | Z23: nicht anrechenbare zu vermindernde Menge durch VOK | AA23: nicht anrechenbarer zu vermindernder Einheitssatz durch VOK | AB23: nicht anrechenbare zu vermindernde Abzüge in % durch VOK | AC23: verminderte Kosten nach VOK | AD23: nicht anrechenbare zu sanktionierende Menge durch VOK | AE23: nicht anrechenbarer zu sanktionierender Einheitskostensatz durch VOK | AF23: nicht anrechenbare zu sanktionierende Abzüge in % durch VOK | AG23: anrechenbare Kosten nach VOK | AH23: Anmerkung zur VOK | AI23: ermittelte Kosten gemäß Art. 35 | AJ23: Sanktion in % gemäß Art. 35 | AK23: sanktionsrelevante Kosten gemäß Art. 35 | AL23: Anmerkung zur Sanktion gemäß Art. 35 (VO 640/2014)
A24: UBVbv | B24: Receipt | C24: 1 | L24: =ROUND(J24*K24,2) -> 0 | N24: =ROUND(L24*(1-M24),2) -> 0 | S24: =ROUND((J24-P24)*(K24-Q24)*(1-M24-R24),2) -> 0 | W24: =ROUND((J24-P24-T24)*(K24-Q24-U24)*(1-M24-R24-V24),2) -> 0 | AC24: =ROUND((J24-P24-T24-Z24)*(K24-Q24-U24-AA24)*(1-M24-R24-V24-AB24),2) -> 0 | AG24: =ROUND((J24-P24-T24-Z24-AD24)*(K24-Q24-U24-AA24-AE24)*(1-M24-R24-V24-AB24-AF24),2) -> 0 | AI24: =AG24 -> 0 | AK24: =AI24*AJ24 -> 0
A25: UBVbv | B25: Receipt | C25: =C24+1 -> 2 | L25: 0 | N25: 0 | S25: 0 | W25: 0 | AC25: 0 | AG25: 0 | AI25: 0 | AK25: 0
A26: UBVbv | B26: Receipt | C26: =C25+1 -> 3 | L26: 0 | N26: 0 | S26: 0 | W26: 0 | AC26: 0 | AG26: 0 | AI26: 0 | AK26: 0
A27: UBVbv | B27: Receipt | C27: =C26+1 -> 4 | L27: 0 | N27: 0 | S27: 0 | W27: 0 | AC27: 0 | AG27: 0 | AI27: 0 | AK27: 0
A28: UBVbv | B28: Receipt | C28: =C27+1 -> 5 | L28: 0 | N28: 0 | S28: 0 | W28: 0 | AC28: 0 | AG28: 0 | AI28: 0 | AK28: 0
A29: UBVbv | B29: Receipt | C29: =C28+1 -> 6 | L29: 0 | N29: 0 | S29: 0 | W29: 0 | AC29: 0 | AG29: 0 | AI29: 0 | AK29: 0
A31: UBVbv | B31: Receipt | C31: =C30+1 -> 1 | L31: =ROUND(J31*K31,2) -> 0 | N31: =ROUND(L31*(1-M31),2) -> 0 | S31: =ROUND((J31-P31)*(K31-Q31)*(1-M31-R31),2) -> 0 | W31: =ROUND((J31-P31-T31)*(K31-Q31-U31)*(1-M31-R31-V31),2) -> 0 | AC31: =ROUND((J31-P31-T31-Z31)*(K31-Q31-U31-AA31)*(1-M31-R31-V31-AB31),2) -> 0 | AG31: =ROUND((J31-P31-T31-Z31-AD31)*(K31-Q31-U31-AA31-AE31)*(1-M31-R31-V31-AB31-AF31),2) -> 0 | AI31: =AG31 -> 0 | AK31: =AI31*AJ31 -> 0
A32: - | B32: Tail | C32: =C31+1 -> 2 | F32: -- Do NOT Erase Gray Lines -- | L32: =J32*K32 -> 0 | N32: =L32*(1-M32) -> 0 | S32: =(J32-P32)*(K32-Q32)*(1-M32-R32) -> 0 | W32: =(J32-P32-T32)*(K32-Q32-U32)*(1-M32-R32-V32) -> 0 | AC32: =ROUND((J32-P32-T32-Z32)*(K32-Q32-U32-AA32)*(1-M32-R32-V32-AB32),2) -> 0 | AG32: =(J32-P32-T32-Z32-AD32)*(K32-Q32-U32-AA32-AE32)*(1-M32-R32-V32-AB32-AF32) -> 0 | AI32: =AG32 -> 0 | AK32: =AI32*AJ32 -> 0
A33: UBVbv | K33: Gesamtsumme: | L33: =SUM(L24:L32) -> 0 | N33: =SUM(N24:N32) -> 0 | S33: =SUM(S24:S32) -> 0 | W33: =SUM(W24:W32) -> 0 | AC33: =SUM(AC24:AC32) -> 0 | AG33: =SUM(AG24:AG32) -> 0 | AK33: =SUM(AK24:AK32) -> 0
A34: U
A35: U
A36: U | C36: Ich bestätige hiermit als Förderungswerber die Richtigkeit der Angaben
A37: U
A38: U
A39: U
A40: U | C40: Ort, Datum | G40: Unterschrift oder firmenmäßige Zeichnung

Sheet TEMPLATE Export LEW Stdkosten (hidden)
A1: LFNR | B1: PLAUS_UNTERLAGE | C1: ANMERKUNG_PLAUS_UNTERL | D1: BEZEICHNUNG | E1: TEILPROJEKT | F1: BELEG_DATUM | G1: EINHEIT | H1: MENGE | I1: STD_KOST_SATZ | J1: ABZUEGE_PROZ
A2: 1 | B2: Rechnung 32 | C2: Rechnung vorgelegt | D2: Baulos 1 | E2: TP 1 | F2: 2018-01-01 | G2: STD | H2: 20 | I2: 12 | J2: 50

Sheet TEMPLATE Unbare Sachleistungen (hidden)
A1: UBVbv | C1: Zahlungsantrag - Belegaufstellung unbare Eigenleistungen (=unbare Sachleistungen)
A2: UBVbv | M2: RL/AMA v469.25 / Jan. 2022
A3: UBVbv | C3: Betriebs-/Klientennummer:
A4: UBVbv
A5: UBVbv | C5: Förderungswerber:
A6: UBVbv
A7: UBVbv | C7: Antragsnummer:
A8: UBVbv
A9: UBVbv | C9: Fördergegenstand:
A11: UBVbv
A12: UBVbv | C12: Vorsteuerabzugsberechtigung: | F12: =F13 -> Ja
F13: =IF(G13=1,"Ja","Nein") -> Ja | G13: 1
A14: UBVbv
A15: UBVbv | C15: Genehmigter Zeitraum für | F15: Beginn | G15: Ende
A16: UBVbv | C16: Kostenanerkennung:
A17: UBVbv
A18: UBVbv | C18: Buttons zur internen Verwendung der Bewilligenden Stelle
A19: UBVbv
A20: UBVbv
A21: UBVbv | C21: Leistungserbringer
A22: UBVbv | B22: Head | C22: Name des Leistungserbringers | F22: Verhältnis zum Förderungswerber* | G22: Unterschrift**
A23: UBVbv | B23: Worker
A24: UBVbv | B24: Worker
A25: UBVbv | B25: Worker
A26: UBVbv | B26: Worker
A27: UBVbv | B27: Worker
A29: UBVbv | B29: Worker
A30: - | B30: Tail | C30: -- Do not Erase --
A31: UBVbv
A32: UBVbv | C32: *Zum Beispiel: Verwandtschaftsverhältnis (Eltern, Geschwister, etc.), Teil des Förderungswerbers (z.B. Vereinsmitglied, Genossenschaftsmitglied, Mitglied der Personengemeinschaft etc.)
A33: UBVbv | C33: **Ich (Leistungserbringer) bestätige hiermit, die unten aufgelistete Tätigkeiten für den Förderungswerber durchgeführt zu haben:
A34: UBVbv
A35: - | B35: - | C35: UBVbv | D35: UBV | E35: UBVbv | F35: UBVbv | G35: UBVbv | H35: UBVbv | I35: UBV | J35: UBV | K35: UBV | L35: UBV | M35: UBVbv | N35: BV | O35: BV | P35: BV | Q35: BV | R35: BV | S35: BV | T35: BV | U35: BV | V35: BVbv | W35: BVbv | X35: V | Y35: V | Z35: V | AA35: V | AB35: V | AC35: V | AD35: V | AE35: V | AF35: Vv | AG35: Vv | AH35: BV | AI35: BV | AJ35: BVbv | AK35: BVbv
A36: UBVbv | C36: Belege | N36: von der Bewilligenden Stelle im Rahmen der VWK auszufüllen | X36: von VOK auszufüllen | Y36: von der Bewilligenden Stelle auszufüllen (im Rahmen einer VOK) | AH36: von der Bewilligenden Stelle auszufüllen
A37: UBVbv | B37: Head | C37: lfd. Nr. | D37: Datum | E37: Leistungserbringer | F37: Art der Leistung / Tätigkeit bzw. eingebrachte Sachleistung | G37: Zuordnung zu Teilprojekt (falls erforderlich) | H37: Einheit (z.B. Stunde, Stück, kg,...) | I37: Menge | J37: beantragter Stunden- / Kostensatz | K37: berechnete Kosten der Eigenleistung | L37: Abzüge in % | M37: eingereichte Kosten | N37: Codierung (optional) | O37: nicht anrechenbare zu vermindernde Menge durch VWK | P37: nicht anrechenbarer zu vermindernder Einheitssatz durch VWK | Q37: nicht anrechenbare zu vermindernde Abzüge in % durch VWK | R37: verminderte Kosten nach VWK | S37: nicht anrechenbare zu sanktionierende Menge durch VWK | T37: nicht anrechenbarer zu sanktionierender Einheitskostensatz durch VWK | U37: nicht anrechenbare zu sanktionierende Abzüge in % durch VWK | V37: anrechenbare Kosten nach VWK | W37: Anmerkung zur VWK | X37: Feststellungen der VOK | Y37: nicht anrechenbare zu vermindernde Menge durch VOK | Z37: nicht anrechenbarer zu vermindernder Einheitssatz durch VOK | AA37: nicht anrechenbare zu vermindernde Abzüge in % durch VOK | AB37: verminderte Kosten nach VOK | AC37: nicht anrechenbare zu sanktionierende Menge durch VOK | AD37: nicht anrechenbarer zu sanktionierender Einheitskostensatz durch VOK | AE37: nicht anrechenbare zu sanktionierende Abzüge in % durch VOK | AF37: anrechenbare Kosten nach VOK | AG37: Anmerkung zur VOK | AH37: ermittelte Kosten gemäß Art. 35 | AI37: Sanktion in % gemäß Art. 35 | AJ37: sanktionsrelevante Kosten gemäß Art. 35 | AK37: Anmerkung zur Sanktion gemäß Art. 35 (VO 640/2014)
A38: UBVbv | B38: Receipt | C38: 1 | K38: =ROUND(I38*J38,2) -> 0 | M38: =ROUND(K38*(1-L38),2) -> 0 | R38: =ROUND((I38-O38)*(J38-P38)*(1-L38-Q38),2) -> 0 | V38: =ROUND((I38-O38-S38)*(J38-P38-T38)*(1-L38-Q38-U38),2) -> 0 | AB38: =ROUND((I38-O38-S38-Y38)*(J38-P38-T38-Z38)*(1-L38-Q38-U38-AA38),2) -> 0 | AF38: =ROUND((I38-O38-S38-Y38-AC38)*(J38-P38-T38-Z38-AD38)*(1-L38-Q38-U38-AA38-AE38),2) -> 0 | AH38: =AF38 -> 0 | AJ38: =AH38*AI38 -> 0
A39: UBVbv | B39: Receipt | C39: =C38+1 -> 2 | K39: 0 | M39: 0 | R39: 0 | V39: 0 | AB39: 0 | AF39: 0 | AH39: 0 | AJ39: 0
A40: UBVbv | B40: Receipt | C40: 3 | K40: 0 | M40: 0 | R40: 0 | V40: 0 | AB40: 0 | AF40: 0 | AH40: 0 | AJ40: 0
A41: UBVbv | B41: Receipt | C41: 4 | K41: 0 | M41: 0 | R41: 0 | V41: 0 | AB41: 0 | AF41: 0 | AH41: 0 | AJ41: 0
A42: UBVbv | B42: Receipt | C42: 5 | K42: 0 | M42: 0 | R42: 0 | V42: 0 | AB42: 0 | AF42: 0 | AH42: 0 | AJ42: 0
A43: UBVbv | B43: Receipt | C43: 6 | K43: 0 | M43: 0 | R43: 0 | V43: 0 | AB43: 0 | AF43: 0 | AH43: 0 | AJ43: 0
A44: UBVbv | B44: Receipt | C44: 7 | K44: 0 | M44: 0 | R44: 0 | V44: 0 | AB44: 0 | AF44: 0 | AH44: 0 | AJ44: 0
A46: UBVbv | B46: Receipt | C46: =C45+1 -> 1 | K46: =ROUND(I46*J46,2) -> 0 | M46: =ROUND(K46*(1-L46),2) -> 0 | R46: =ROUND((I46-O46)*(J46-P46)*(1-L46-Q46),2) -> 0 | V46: =ROUND((I46-O46-S46)*(J46-P46-T46)*(1-L46-Q46-U46),2) -> 0 | AB46: =ROUND((I46-O46-S46-Y46)*(J46-P46-T46-Z46)*(1-L46-Q46-U46-AA46),2) -> 0 | AF46: =ROUND((I46-O46-S46-Y46-AC46)*(J46-P46-T46-Z46-AD46)*(1-L46-Q46-U46-AA46-AE46),2) -> 0 | AH46: =AF45 -> 0 | AJ46: =AH46*AI46 -> 0
A47: - | B47: Tail | C47: =C46+1 -> 2 | E47: -- Do Not Erase -- | K47: =I47*J47 -> 0 | M47: =K47*(1-L47) -> 0 | R47: =(I47-O47)*(J47-P47)*(1-L47-Q47) -> 0 | V47: =(I47-O47-S47)*(J47-P47-T47)*(1-L47-Q47-U47) -> 0 | AB47: =ROUND((I47-O47-S47-Y47)*(J47-P47-T47-Z47)*(1-L47-Q47-U47-AA47),2) -> 0 | AF47: =(I47-O47-S47-Y47-AC47)*(J47-P47-T47-Z47-AD47)*(1-L47-Q47-U47-AA47-AE47) -> 0 | AH47: =AF46 -> 0 | AJ47: =AH47*AI47 -> 0
A48: UBVbv | J48: Gesamtsumme: | K48: =SUM(K38:K47) -> 0 | M48: =SUM(M38:M47) -> 0 | R48: =SUM(R38:R47) -> 0 | V48: =SUM(V38:V47) -> 0 | AB48: =SUM(AB38:AB47) -> 0 | AF48: =SUM(AF38:AF47) -> 0 | AJ48: =SUM(AJ38:AJ47) -> 0
A49: U
A50: U
A51: U | C51: Ich bestätige hiermit als Förderungswerber die Richtigkeit der Angaben
A52: U
A53: U
A54: U
A55: U | C55: Ort, Datum | G55: Unterschrift oder firmenmäßige Zeichnung
A56: U

Sheet TEMPLATE Export LEW Unbare Sach (hidden)
A1: LFNR | B1: BELEG_DATUM | C1: ART_UNB_SACHL | D1: LEISTUNGSERBRINGER | E1: BEZEICHNUNG | F1: TEILPROJEKT | G1: EINHEIT | H1: MENGE | I1: STD_KOST_SATZ | J1: ABZUEGE_PROZ
A2: 1 | B2: 2018-10-10 | C2: ARBLEIST | D2: Hannes Test, 30.10.2018 | E2: Test 1 | F2: Teilprojekt | G2: M2 | H2: 50 | I2: 12 | J2: 0

Sheet TEMPLATE Personalkosten (hidden)
K1: RL/AMA v469.25 / Jan. 2022
A2: Zahlungsantrag - Belegaufstellung Personalkosten
A3: ="inkl. Obergrenzen für " &D17 -> inkl. Obergrenzen für 2022
A5: Kurzbezeichung des Vorhabens | D5: X
A7: Betriebs-/Klientennummer | D7: X
A9: Förderungswerber | D9: X
A11: Antragsnummer | D11: X
A13: Fördergegenstand | D13: X
A14: Fördergegenstand | D14: X
A16: Bitte wählen Sie ein Abrechungsmodell: | D16: D
B17: =DATE(2030,12,31) -> 2030-12-31 | C17: Ja | D17: ='TABLE Gehaltsgrenzen'!A1 -> 2022
C18: Nein | D18: 33553408
C19: No | D19: D
D23: B | G23: ACHTUNG: Diese Berechnungsmethode darf ab 2021 nicht mehr verwendet werden!
D27: A
D31: C | G31: ACHTUNG: Diese Berechnungsmethode darf ab 2021 nicht mehr verwendet werden!
A34: Personalkostenabrechnung auf Ist-Kosten Basis (Stundensatzermittlung)
A35: Personalkostenabrechnung auf Basis von standardisierten Einheitkosten (Lohnnebenkosten auf Ist-Basis)
A36: Personalkostenabrechung auf Ist-Kosten-Basis (Mitarbeiter ist für einen bestimmten Zeitraum zu 100% dem Projekt zuordenbar)
A37: Personalkostenabrechnung mit standardisierten Einheitskosten (%-Zuschlag für Lohnnebenkosten)
B38: Type | C38: Valid for | D38: Visible for
A39: MitarbeiterIn (Name) | B39: In | C39: ABCD | D39: ABCD | E39: Name eintragen | F39: Shadow Copy
A40: Jahr für die Berechnung des Stundensatzes (JJJJ) | B40: In | C40: ABCD | D40: ABCD | E40: 2021 | F40: 2021
A41: Beginn Zeitraum für die Berechnung des Stundensatzes (TT.MM) | B41: In | C41: ABCD | D41: ABCD | E41: 2017-01-01 | F41: =E41 -> 2017-01-01
A42: Ende Zeitraum für die Berechung des Stundensatzes (TT.MM) | B42: In | C42: ABCD | D42: ABCD | E42: 2017-12-31 | F42: =E42 -> 2017-12-31 | M42: AMA
A43: Beschäftigungsgruppe | B43: In | C43: D | D43: D | E43: „normale“ Beschäftigungsgruppen | F43: „normale“ Beschäftigungsgruppen
A44: Volles Datums des Beginns des Zeitraums zur Stundensatzberechnung (Tagesberechnung) | B44: Calc | C44: ABCD | D44: - | E44: =DATE(E40,MONTH(E41),DAY(E41)) -> 2021-01-01 | F44: =DATE(F40,MONTH(F41),DAY(F41)) -> 2021-01-01
A45: Volles Datum des Endes der Zeitraums zu Stundensatzberechnung (Tagesberechnung) | B45: Calc | C45: ABCD | D45: - | E45: =DATE(E40,MONTH(E42),DAY(E42)) -> 2021-12-31 | F45: =DATE(F40,MONTH(F42),DAY(F42)) -> 2021-12-31
A46: Beginn des Zeitraums zur Stundensatzberechnung im Kalendermonat (Tagesberechnung) | B46: Calc | C46: ABCD | D46: - | E46: =IF(AND(MONTH(E44)=2,DAY(E44)>=28),30,MIN(DAY(E44),30)) -> 1 | F46: =IF(AND(MONTH(F44)=2,DAY(F44)>=28),30,MIN(DAY(F44),30)) -> 1
A47: Ende des Zeitraums zur Stundensatzberechnung im Kalendermonat (Tagesberechnung) | B47: Calc | C47: ABCD | D47: - | E47: =IF(AND(MONTH(E45)=2,DAY(E45)>=28),30,MIN(DAY(E45),30)) -> 30 | F47: =IF(AND(MONTH(F45)=2,DAY(F45)>=28),30,MIN(DAY(F45),30)) -> 30
A48: Dauer des Zeitraums zur Stundensatzberechnung in Tagen (Tagesberechnung) | B48: Calc | C48: ABCD | D48: - | E48: =IF(E45-E44<=28,MAX(0,E45-E44+1),360*(YEAR(E45)-YEAR(E44)) + 30*(MONTH(E45)-MONTH(E44)) + (E47-E46) + 1) -> 360 | F48: =IF(F45-F44<=28,MAX(0,F45-F44+1),360*(YEAR(F45)-YEAR(F44)) + 30*(MONTH(F45)-MONTH(F44)) + (F47-F46) + 1) -> 360
A49: Anzahl der Monate für die Berechnung des Stundensatzes | B49: In | C49: ABCD | D49: - | E49: 12 | F49: 12
A50: Dauer des Zeitraums zur Stundensatzberechnung in Tagen (Monatsberechnung) | B50: Calc | C50: ABCD | D50: - | E50: =30*E49 -> 360 | F50: =30*F49 -> 360
A51: Bruttojahresbezug | B51: In | C51: D | D51: D | F51: 0
A52: Dienstvertrag enthält eine Überstundenpauschale (All-In-Vertrag) | B52: In | C52: ABCD | D52: ABCD | E52: Nein | F52: Nein
A53: Wochenarbeitsstunden (bei Bruttojahresbezug) | B53: In | C53: D | D53: D
A54: Pauschalstundensatz (ex. Mode D) | B54: In | C54: - | D54: -
A55: Beginn der Tätigkeit im Kalenderjahr | B55: In | C55: C | D55: C
A56: Ende der Tätigkeit im Kalenderjahr | B56: In | C56: C | D56: C
D57: -
A58: förderb. Bruttogehalts(Lohn)kosten in € | D58: ABC | E58: =SUM(E59:E65) -> 0 | F58: =SUM(F59:F65) -> 0
A59: Nettogehalt (exkl. Diäten, km-Geld, …) | D59: AC | E59: 0 | F59: 0
A60: Nettogehalt (exkl. Diäten, km-Geld, Überstundenentgelt, …) | D60: B | E60: 0 | F60: 0
A61: Dienstnehmeranteil Sozialversicherung (SV) auf LF | D61: ABC | E61: 0 | F61: 0
A62: Dienstnehmeranteil Sozialversicherung (SV) auf SZ | D62: ABC | E62: 0 | F62: 0
A63: Dienstnehmeranteil Lohnsteuer (LST) auf LF | D63: ABC | E63: 0 | F63: 0
A64: Dienstnehmeranteil Lohnsteuer (LST) auf SZ | D64: ABC | E64: 0 | F64: 0
A65: sonstige Abzüge (e-card) | D65: ABC | E65: 0 | F65: 0
A66: nicht förderbare Bruttogehalts(Lohn)kosten in € | D66: ABC | E66: =E67+E68 -> 0 | F66: =F67+F68 -> 0
A67: Überstunden (Grundlohn + Zuschläge) | D67: B | E67: 0 | F67: 0
A68: sonstige Sonderzahlungen | D68: ABC | E68: 0 | F68: 0
A69: förderbare Personalnebenkosten DG-Anteil - gesamt in € | D69: ABC | E69: =SUM(E70:E76) -> 0 | F69: =SUM(F70:F76) -> 0
A70: Dienstgeberanteil Sozialversicherung (SV) auf LF | D70: ABC | E70: 0 | F70: 0
A71: Dienstgeberanteil Sozialversicherung (SV) auf SZ | D71: ABC | E71: 0 | F71: 0
A72: Dienstgeberbeitrag (DB) zum FLAF | D72: ABC | E72: 0 | F72: 0
A73: Zuschlag zum Dienstgeberbeitrag (DZ) | D73: ABC | E73: 0 | F73: 0
A74: Dienstgeberabgabe - U-Bahn-Steuer (nur in Wien) | D74: ABC | E74: 0 | F74: 0
A75: Kommunalsteuer | D75: ABC | E75: 0 | F75: 0
A76: Mitarbeiter-/Betriebl. Vorsorgekasse (MV / BV) | D76: ABC | E76: 0 | F76: 0
A77: Personalnebenkosten nicht förderbar in € | D77: ABC | E77: =SUM(E78:E79) -> 0 | F77: =SUM(F78:F79) -> 0
A78: freiwillige Unternehmensleistungen | D78: ABC | E78: 0 | F78: 0
A79: Aliquote Nebenkosten f. nicht förderb. Bruttobezüge | D79: ABC | E79: =IF(E58=0,0,(E66+E78)/(E58+E66+E78)*E69) -> 0 | F79: =IF(F58=0,0,(F66+F78)/(F58+F66+F78)*F69) -> 0
A80: Summe förderbarer direkter Personalkosten in € | D80: ABC | E80: =E58+E69-E79 -> 0 | F80: =F58+F69-F79 -> 0
A81: Summe förderb. direkter Personalk. f. Tätigkeitszeitraum in €. | B81: Calc | C81: ABC | D81: C | E81: =E80*E93/E92 -> 0 | F81: =F80*F93/F92 -> 0
A82: Personalkostenobergrenze in € | B82: Calc | C82: ABCD | D82: ABC | E82: =E118 -> 84620 | F82: =F118 -> 84620
A83: Personalkostenobergrenze in f. Tätigkeitsz. in € | B83: Calc | C83: C | D83: C | E83: =E119 -> 84620 | F83: =F119 -> 84620
A84: Wochenarbeitsstunden | B84: In | C84: ABC | D84: ABC | E84: 0 | F84: 0
A85: Tatsächlich geleistete Arbeitszeit in Stunden | B85: Calc | C85: ABCD | D85: A | E85: =IF(Labour_SelectedCalcTypeCell="A",E86,E102) -> 1720 | F85: =IF(Labour_SelectedCalcTypeCell="A",F86,F102) -> 1720
A86: Anwesenheitsstunden inkl. Überstunden | B86: In | C86: A | D86: A | E86: 0 | F86: 0
D87: -
A88: Bruttobezüge | B88: Calc | C88: ABCD | D88: - | E88: =IF(Labour_SelectedCalcTypeCell="D",E51,E81) -> 0 | F88: =IF(Labour_SelectedCalcTypeCell="D",F51,F81) -> 0
A89: Beginn der Tätigkeit im Kalendermonat (Mode C) | B89: Calc | C89: C | D89: - | E89: =IF(AND(MONTH(E55)=2,DAY(E55)>=28),30,MIN(DAY(E55),30)) -> 0 | F89: =IF(AND(MONTH(F55)=2,DAY(F55)>=28),30,MIN(DAY(F55),30)) -> 0
A90: Ende der Tätigkeit im Kalendermonat (Mode C) | B90: Calc | C90: C | D90: - | E90: =IF(AND(MONTH(E56)=2,DAY(E56)>=28),30,MIN(DAY(E56),30)) -> 0 | F90: =IF(AND(MONTH(F56)=2,DAY(F56)>=28),30,MIN(DAY(F56),30)) -> 0
A91: Dauer der Tätigkeit in Tagen (Mode C) | B91: Calc | C91: C | D91: - | E91: =360*(YEAR(E56)-YEAR(E55)) + 30*(MONTH(E56)-MONTH(E55)) + (E90-E89) + 1 -> 1 | F91: =360*(YEAR(F56)-YEAR(F55)) + 30*(MONTH(F56)-MONTH(F55)) + (F90-F89) + 1 -> 1
A92: Abgerechnete Tage | B92: Calc | C92: ABCD | D92: - | E92: =E48 -> 360 | F92: =F48 -> 360
A93: Dauer der Tätigkeit in Tagen | B93: Calc | C93: ABCD | D93: - | E93: =IF(Labour_SelectedCalcTypeCell="C",E91,E92) -> 360 | F93: =IF(Labour_SelectedCalcTypeCell="C",F91,F92) -> 360
A94: Wochenarbeitsstunden Vollzeit | B94: Const. | C94: ABCD | D94: - | E94: 40 | F94: 40
A95: Jahresarbeitsstunden Vollzeit (ohne Überstunden) | B95: Const. | C95: ABCD | D95: - | E95: =VLOOKUP(E43,BeschaeftTable,5,FALSE) -> 1720 | F95: =VLOOKUP(F43,BeschaeftTable,5,FALSE) -> 1720
A96: Jahresarbeitsstunden Vollzeit (All-In-Dienstverträge) | B96: Const. | C96: D | D96: - | E96: =VLOOKUP(E43,BeschaeftTable,6,FALSE) -> 1900 | F96: =VLOOKUP(F43,BeschaeftTable,6,FALSE) -> 1900
A97: max. abrechenbare Überstunden (Nicht All-In-Dienstverträge) | B97: Const. | C97: D | D97: - | E97: 180 | F97: 180
A98: Jahresarbeitsstunden Vollzeit (f. realen Vertrag) | B98: Calc | C98: ABCD | D98: - | E98: =IF(UPPER(E52)="JA",E96,E95) -> 1720 | F98: =IF(UPPER(F52)="JA",F96,F95) -> 1720
A99: Wochenarbeitsstunden Teilzeit | B99: Calc | C99: ABCD | D99: - | E99: =IF(Labour_SelectedCalcTypeCell="D",MIN(E53,E94),MIN(E84,E94)) -> 40 | F99: =IF(Labour_SelectedCalcTypeCell="D",MIN(F53,F94),MIN(F84,F94)) -> 40
A100: Jahresarbeitsstunden Teilzeit (f. realen Vertrag) | B100: Calc | C100: ABCD | D100: - | E100: =E98*E99/E94 -> 1720 | F100: =F98*F99/F94 -> 1720
A101: Arbeitsstunden Teilzeit / Abrechnungszeitraum (f. realen Vertrag) | B101: Calc | C101: ABCD | D101: - | E101: =E100*E92/360 -> 1720 | F101: =F100*F92/360 -> 1720
A102: Arbeitsstunden Teilzeit / Tätigkeitszeitraum (f. realen Vertrag) | B102: Calc | C102: ABCD | D102: - | E102: =IF(Labour_SelectedCalcTypeCell="A",E86,E100*E93/360) -> 1720 | F102: =IF(Labour_SelectedCalcTypeCell="A",F86,F100*F93/360) -> 1720
A103: Bruttobezug pro Jahr (f. reale Wochenarbeitsstunden) | B103: Calc | C103: D | E103: =E88 * (360/E92) -> 0 | F103: =F88 * (360/F92) -> 0
A104: Bruttobezug pro Jahr Vollzeitäquivalent | B104: Calc | C104: D | D104: - | E104: =IF(E99=0,0,E103 * (E94/E99)) -> 0 | F104: =IF(F99=0,0,F103 * (F94/F99)) -> 0
A105: Bruttobezug in €/Std | B105: Calc | C105: D | D105: - | E105: =ROUND(IF(E102=0,0,E88 / E102),5) -> 0 | F105: =ROUND(IF(F102=0,0,F88 / F102),5) -> 0
A106: Lohnnebenkosten für vollen Bruttolohn | B106: Calc | C106: D | D106: - | E106: =VLOOKUP(E43,BeschaeftTable,3,FALSE) -> 0.085282 | F106: =VLOOKUP(F43,BeschaeftTable,3,FALSE) -> 0.085282
A107: Lohnnebenkosten für max. Höchstbemessungsgrundlage | B107: Calc | C107: D | D107: - | E107: =VLOOKUP(E43,BeschaeftTable,4,FALSE) -> 0.210394 | F107: =VLOOKUP(F43,BeschaeftTable,4,FALSE) -> 0.210394
A108: Lohnkosten Fixwert | B108: Calc | C108: D | D108: - | E108: =VLOOKUP(E43,BeschaeftTable,7,FALSE) -> 0 | F108: =VLOOKUP(F43,BeschaeftTable,7,FALSE) -> 0
A109: Lohnkosten Teilzeit / Jahr (inkl. Lohnnebenkosten) | B109: Calc | C109: D | D109: - | E109: =(1+E106)*E103+E107*MIN(E103,E113) -> 0 | F109: =(1+F106) * F103 + F107 * MIN(F103,E113) -> 0
A110: Lohnkosten Teilzeit / Abrechnungszeitraum (inkl. Lohnnebenkosten) | B110: Calc | C110: ABD | D110: - | E110: =IF(Labour_SelectedCalcTypeCell<="B",E80,E109*E92/360) -> 0 | F110: =IF(Labour_SelectedCalcTypeCell<="B",F80,F109*F92/360) -> 0
A111: Lohnkosten in €/Std (inkl. Lohnnebenkosten) | B111: Calc | C111: D | D111: - | E111: =IF(E108>0,E108,ROUND(IF(E102=0,0,E110 / E102),5)) -> 0 | F111: =IF(F108>0,F108,ROUND(IF(F102=0,0,F110 / F102),5)) -> 0
A112: Referenzjahr für Höchstbemessungsgrundlage / Gehalt für Bundesbeamte | B112: Calc | C112: ABCD | D112: - | E112: =IF(Labour_SelectedCalcTypeCell="C",E40,E148) -> 2021 | F112: =IF(Labour_SelectedCalcTypeCell="C",F40,F148) -> 2021
A113: ASVG Höchstbemessungsgrundlage | B113: Lookup | C113: ABCD | D113: - | E113: =VLOOKUP(E112,'TABLE Gehaltsgrenzen'!$A$3:$C$19,3) -> 77700 | F113: =VLOOKUP(F112,'TABLE Gehaltsgrenzen'!$A$3:$C$19,3) -> 77700
A114: Gehalt für Bundesbeamte der allgem.Verwaltung | B114: Lookup | C114: ABCD | D114: - | E114: =VLOOKUP(E112,'TABLE Gehaltsgrenzen'!$A$3:$C$19,2) -> 84620 | F114: =VLOOKUP(F112,'TABLE Gehaltsgrenzen'!$A$3:$C$19,2) -> 84620
A115: Gehalt für Bundesbeamte VII/2 ggf. mit Überstd. (f. realen Vertrag) | B115: Calc | C115: ABD | D115: - | E115: =IF(UPPER(E52)="JA",E114*E96/E95,E114) -> 84620 | F115: =IF(UPPER(F52)="JA",F114*F96/F95,F114) -> 84620
A116: Arbeitsstunden Teilzeit / Tätigkeitszeitraum (f. Beamte) | B116: Calc | C116: ABCD | E116: =IF(Labour_SelectedCalcTypeCell="A",E86,E98*E93/360*E99/E94) -> 1720 | F116: =IF(Labour_SelectedCalcTypeCell="A",F86,F98*F93/360*F99/F94) -> 1720
A117: Jahresgehalt für Beamte Teilzeit in €/Jahr | B117: Calc | C117: ABCD | D117: - | E117: =E115*E99/E94 -> 84620 | F117: =F115*F99/F94 -> 84620
A118: Gehalt für Beamte - Teilzeit in € / Abrechnungszeitraum | B118: Calc | C118: ABCD | D118: - | E118: =E117*E92/360 -> 84620 | F118: =F117*F92/360 -> 84620
A119: Gehalt für Beamte - Teilzeit in € / Tätigkeitszeitraum | B119: Calc | C119: ABCD | D119: - | E119: =E117*E93/360 -> 84620 | F119: =F117*F93/360 -> 84620
A120: Stundenlohn für Beamte in €/Std | B120: Calc | C120: ABCD | D120: - | E120: =ROUND(IF(E116=0,0,E118/E116),5) -> 49.19767 | F120: =ROUND(IF(F116=0,0,F118/F116),5) -> 49.19767
A121: Berechneter Stundensatz in €/Std | B121: Calc | C121: D | D121: D | E121: =E111 -> 0 | F121: =F111 -> 0
A122: Personalkostenobergrenze in €/Std | B122: Calc | C122: D | D122: D | E122: =E120 -> 49.19767 | F122: =F120 -> 49.19767
A123: Anrechenbarer Stundensatz in €/Std | B123: Calc | C123: D | D123: D | E123: =MIN(E121,E122) -> 0 | F123: =MIN(F121,F122) -> 0
D124: -
A125: Berechneter Stundensatz in €/Std | B125: Calc | C125: AB | D125: AB | E125: =IF(E85=0,0,E80/E85) -> 0 | F125: =IF(F85=0,0,F80/F85) -> 0
A126: Stundenlohn für Beamte in €/Std | B126: Calc | C126: AB | D126: AB | E126: =IF(Labour_SelectedCalcTypeCell="A",IF(E85=0,0,ROUND(E82/E85,5)),E120) -> 49.19767 | F126: =IF(Labour_SelectedCalcTypeCell="A",IF(F85=0,0,ROUND(F82/F85,5)),F120) -> 49.19767
A127: Anrechenbarer Stundensatz in € | B127: Calc | C127: ABD | D127: AB | E127: =IF(Labour_SelectedCalcTypeCell="D",E123,ROUND(MIN(E125,E126),5)) -> 0 | F127: =E127 -> 0
A128: Anrechenbarer Stundensatz in € nach VWK durch BST | B128: Calc | C128: ABD | D128: AB | E128: =E127 -> 0 | F128: =IF(Labour_SelectedCalcTypeCell="D",F123,ROUND(IF(F85=0,0,MIN(F125,F126)),5)) -> 0
A129: anrechenbare Personalkosten in € | B129: Calc | C129: C | D129: C | E129: =ROUND(MIN(E80,E82)*E91/E92,2) -> 0 | F129: =E129 -> 0
A130: anrechenbare Personalkosten nach VWK in € | B130: Calc | C130: C | D130: C | E130: =E129 -> 0 | F130: =ROUND(MIN(F80,F82)*F91/F92,2) -> 0
A131: Abzüge in % (zB nicht förderbarer Gebietskörperschaftsanteil) | B131: In | C131: C | D131: C | E131: 0 | F131: 0
A132: eingereichte anrechenb. Personalkosten in € | B132: Calc | C132: C | D132: C | E132: =ROUND(E129 *(1-E131),2) -> 0 | F132: =ROUND(F129*(1-F131),2) -> 0 | G132: =E132 -> 0 | H132: =F132 -> 0 | M132: =IF(Labour_DataSubmittedCell="No",G132,H132) -> 0
A133: eingereichte anrechenb. Personalkosten nach VWK in € | B133: Calc | C133: C | D133: C | E133: =ROUND(E130*(1-E131),2) -> 0 | F133: =ROUND(F130*(1-F131),2) -> 0 | G133: =E133 -> 0 | H133: =F133 -> 0 | M133: =IF(Labour_DataSubmittedCell="No",G133,H133) -> 0
A134: eingereichte anrechenb. Gemeinkosten (Pauschalsatz in %) | B134: Calc | C134: C | D134: C | E134: 0 | F134: 0
A135: eingereichte anrechenb. Gemeinkosten in € | B135: Calc | C135: C | D135: C | E135: =ROUND(E132*E134,2) -> 0 | F135: =ROUND(F133*F134,2) -> 0 | G135: =E135 -> 0 | H135: 0 | M135: =IF(Labour_DataSubmittedCell="No",G135,H135) -> 0
A136: eingereichte anrechenb. Gemeinkosten in € nach VWK | B136: Calc | C136: C | D136: - | E136: =ROUND(E135,2) -> 0 | F136: =ROUND(F133*F134,2) -> 0 | G136: 0 | H136: 0 | M136: =IF(Labour_DataSubmittedCell="No",G136,H136) -> 0
A137: einger. anrechenb. Personalkosten inkl. Gemeinkosten in € | B137: Calc | C137: C | D137: C | E137: =ROUND(E132+E135,2) -> 0 | F137: =ROUND(F132+F135,2) -> 0 | G137: 0 | H137: 0 | M137: =IF(Labour_DataSubmittedCell="No",G137,H137) -> 0
A138: einger. anrechenb. Personalkosten inkl. Gemeink. nach VWK | B138: Calc | C138: C | D138: C | E138: =ROUND(E133*(1+E134),2) -> 0 | F138: =ROUND(F133*(1+F134),2) -> 0 | G138: 0 | H138: 0 | M138: =IF(Labour_DataSubmittedCell="No",G138,H138) -> 0
D139: ABCD
A140: Berechnete Überweisungen laut Jahreslohnkonto | D140: AC | E140: =E40 -> 2021 | F140: =F40 -> 2021
A141: Sozialversicherung | D141: AC | E141: =E61+E62+E65+E70+E71+E76 -> 0 | F141: =F61+F62+F65+F70+F71+F76 -> 0
A142: Finanzamt | D142: AC | E142: =E63+E64+E72+E73 -> 0 | F142: =F63+F64+F72+F73 -> 0
A143: Kommunalsteuer | D143: AC | E143: =E75 -> 0 | F143: =F75 -> 0
A144: Nettogehalt | D144: AC | E144: =E59+E60 -> 0 | F144: =F59+F60 -> 0
A145: Summe | D145: AC | E145: =SUM(E141:E144) -> 0 | F145: =SUM(F141:F144) -> 0
D146: AC
A147: Gesamtstundenübersicht | D147: ABD
A148: Abgerechnete Tätigkeiten beziehen sich auf das Jahr (JJJJ) | D148: ABD | E148: =E40 -> 2021 | F148: =E148 -> 2021
A149: Beginn des Beschäftigungszeitraums im Kalenderjahr (TT.MM) | B149: In | C149: ABD | D149: ABD | E149: 2016-01-01 | F149: =E149 -> 2016-01-01
A150: Ende des Beschäftigungszeitraums im Kalenderjahr (TT.MM) | B150: In | C150: ABD | D150: ABD | E150: 2016-12-31 | F150: =E150 -> 2016-12-31
A151: Volles Datum des Beginns der Beschäftigung (Tagesberechnung - Mode ABD) | B151: Calc | C151: ABD | D151: - | E151: =DATE(E148,MONTH(E149),DAY(E149)) -> 2021-01-01 | F151: =DATE(F148,MONTH(F149),DAY(F149)) -> 2021-01-01
A152: Volles Datum des Endes der Beschäftigung (Tagesberechnung - Mode ABD) | B152: Calc | C152: ABD | D152: - | E152: =DATE(E148,MONTH(E150),DAY(E150)) -> 2021-12-31 | F152: =DATE(F148,MONTH(F150),DAY(F150)) -> 2021-12-31
A153: Beginn der Beschäftigung im Kalendermonat (Tagesberechnung - Mode ABD) | B153: Calc | C153: ABD | D153: - | E153: =IF(AND(MONTH(E151)=2,DAY(E151)>=28),30,MIN(DAY(E151),30)) -> 1 | F153: =IF(AND(MONTH(F151)=2,DAY(F151)>=28),30,MIN(DAY(F151),30)) -> 1
A154: Ende der Beschäftigung im Kalendermonat (Tagesberechnung - Mode ABD) | B154: Calc | C154: ABD | D154: - | E154: =IF(AND(MONTH(E152)=2,DAY(E152)>=28),30,MIN(DAY(E152),30)) -> 30 | F154: =IF(AND(MONTH(F152)=2,DAY(F152)>=28),30,MIN(DAY(F152),30)) -> 30
A155: Dauer der Beschäftigung in Tagen (Tagesberechnung - Mode ABD) | B155: Calc | C155: ABD | D155: - | E155: =IF(E152-E151<=28,MAX(0,E152-E151+1),360*(YEAR(E152)-YEAR(E151)) + 30*(MONTH(E152)-MONTH(E151)) + (E154-E153) + 1) -> 360 | F155: =IF(F152-F151<=28,MAX(0,F152-F151+1),360*(YEAR(F152)-YEAR(F151)) + 30*(MONTH(F152)-MONTH(F151)) + (F154-F153) + 1) -> 360
A156: Anzahl der beschäftigten Monate (max. 12 Monate / Mitarbeiter) | B156: Obsolete | C156: ABD | D156: - | E156: 12 | F156: 12
A157: Dauer der Tätigkeit in Tagen (Monatsberechnung - Mode ABD) | B157: Calc | C157: ABD | D157: - | E157: =30*MIN(E156,12) -> 360 | F157: =30*MIN(F156,12) -> 360
A158: Bruttobezug enthält ausbezahlte Überstd. (max. 180 Std./Jahr) | B158: In | C158: ABD | D158: ABD | E158: Nein | F158: Nein
A159: Anzahl der Wochenarbeitsstunden | D159: ABD
A160: ="Für " & IF(TRIM(G13)="",IF(TRIM(G5)="","dieses Vorhaben",G5),G13) & " geleistete Stunden" -> Für dieses Vorhaben geleistete Stunden | D160: ABD | F160: 0
A161: ="Summe der bereits für " & IF(TRIM(G13)="",IF(TRIM(G5)="","dieses Vorhaben",G5),G13) & " abgerechnete Stunden" -> Summe der bereits für dieses Vorhaben abgerechnete Stunden | D161: ABD | F161: 0
A162: Max. akzeptable Arbeitsstunden (Vollzeit / Jahr) | C162: ABD | D162: - | E162: =(IF(E52="Ja",E96,IF(E158="Ja",E95+E97,E95))) -> 1720 | F162: =(IF(F52="Ja",F96,IF(F158="Ja",F95+F97,F95))) -> 1720
A163: Max. akzeptable Arbeitsstunden (Teilzeit / Jahr) | C163: ABD | D163: - | E163: =E162*MIN(E159,E94)/E94 -> 1720 | F163: =F162*MIN(F159,F94)/F94 -> 1720
A164: Max. akzeptable Arbeitsstunden (Teilzeit / Beschäftigungszeitraum) | C164: ABD | D164: - | E164: =E163*MIN(E155,360)/360 -> 1720 | F164: =F163*MIN(F155,360)/360 -> 1720
A165: Akzeptable, tatsächlich gearbeitete Stunden | C165: ABD | D165: - | E165: =IF(Labour_SelectedCalcTypeCell<>"A",E164,MIN(E164,E85)) -> 1720 | F165: =IF(Labour_SelectedCalcTypeCell<>"A",F164,MIN(F164,F85)) -> 1720
A166: Noch verfügbare akzeptable Arbeitsstunden für dieses Vorhaben | C166: ABD | D166: - | E166: =MAX(E165-E161,0) -> 1720 | F166: =MAX(F165-F161,0) -> 1720
A167: Dummy Line - Do not Use - Do not Erase | D167: Proj | E167: 0 | F167: 0
A168: Stunden für sonstige Projekte | D168: Proj-ABD | E168: 0 | F168: 0
A169: z.Bsp: Projekt Qualifizierung | D169: Proj-ABD | E169: 0 | F169: 0
A170: z.Bsp: Projekt Vierkanter | D170: Proj-ABD | E170: 0 | F170: 0
D171: Proj-ABD | E171: 0 | F171: 0
D173: Proj | E173: 0 | F173: 0
A174: Dummy Line - Do not Use - Do not Erase | D174: Proj | E174: 0 | F174: 0
A175: Summe über alle Projekte im Abrechnungsjahr | D175: ABD | E175: =E160 + E161 + SUM(E167:E174) -> 0 | F175: =F160 + F161 + SUM(F167:F174) -> 0
A176: Tatsächlich geleistete Arbeitsstunden | D176: A | E176: =E85 -> 1720 | F176: =F85 -> 1720
A177: Faktor: durchschnittliche Jahresleistungsstunden | D177: BD | E177: =E164 -> 1720 | F177: =F164 -> 1720
A178: Tatsächlich geleistete Arbeitsstunden | C178: ABD | D178: - | E178: =E160 -> 0 | F178: =F160 -> 0
A179: Akzeptierte geleistete Arbeitsstunden | D179: - | E179: =MIN(E160,E166) -> 1720 | F179: =MIN(F160,F166) -> 0
A180: eingereichte Personalkosten (ohne Obergrenze) | C180: ABD | D180: ABD | E180: =ROUND(MIN(E160,E166)*E121,2) -> 0 | F180: =ROUND(MIN(F160,F166)*F121,2) -> 0 | G180: =E180 -> 0 | H180: =F180 -> 0 | M180: =IF(Labour_DataSubmittedCell="No",G180,H180) -> 0
A181: Personalkostenobergrenze | C181: ABD | D181: ABD | E181: =E179*E122 -> 84619.9924 | F181: =F179*F122 -> 0
A182: anrechenbare Personalkosten | D182: ABD | E182: =ROUND(MIN(E180:E181),2) -> 0 | F182: =ROUND(MIN(F180:F181),2) -> 0
A183: Abzüge in % (zB nicht förderbarer Gebietskörperschaftsanteil) | D183: ABD | E183: 0 | F183: 0
A184: eingereichte Personalkosten | D184: ABD | E184: =ROUND(E182*(1-E183),2) -> 0 | F184: =ROUND(F182*(1-F183),2) -> 0 | G184: =E184 -> 0 | H184: =F184 -> 0 | M184: =IF(Labour_DataSubmittedCell="No",G184,H184) -> 0
A185: Pauschalsatz in % (für Gemeinkosten) | D185: ABD | E185: 0 | F185: 0
A186: eingereichte Gemeinkosten in € | D186: ABD | E186: =ROUND(E184*E185,2) -> 0 | F186: =ROUND(F184*F185,2) -> 0 | G186: =E186 -> 0 | H186: =F186 -> 0 | M186: =IF(Labour_DataSubmittedCell="No",G186,H186) -> 0
A187: eingereichte Personalkosten inkl. Gemeink. in € | D187: ABD | E187: =E184+E186 -> 0 | F187: =F184+F186 -> 0 | G187: =E187 -> 0 | H187: =F187 -> 0 | M187: =IF(Labour_DataSubmittedCell="No",G187,H187) -> 0
D188: ABD
A189: Warnung: Durch das Klicken auf "Eingabe abschließen" werden alle obigen Felder gesperrt. Es sind danach keine Änderungen oder Ergänzungen mehr möglich! | D189: ABCD
D190: ABCD
D191: ABCD
D192: ABCD
B193: Ja | D193: ABCD
B194: Nein | D194: ABCD
A195: Eingabe abgeschlossen am 19. Jan. 2022 (19:00) | D195: ABCD
D196: ABCD
D197: ABCD
D198: ABCD
D199: ABCD
A200: Unterschrift | D200: ABCD
D201: ABCD
D202: ABCD
A203: Von BST im Rahmen der VWK auszufüllen | D203: ABCD | G203: Summe | H203: Summe
A204: Stundensatz lt. FW in €/Std | C204: ABCD | D204: - | E204: =IF(Labour_SelectedCalcTypeCell="C",IF(E102<=0,0,ROUND(E129/E102,5)),E127) -> 0 | F204: =E204 -> 0
A205: Stundensatz nach VWK in €/Std | C205: ABCD | D205: - | E205: =E204 -> 0 | F205: =IF(Labour_SelectedCalcTypeCell="C",IF(F102<=0,0,ROUND(F130/F102,5)),F128) -> 0
A206: Stunden lt. Förderwerber | C206: ABCD | D206: - | E206: =IF(Labour_SelectedCalcTypeCell="C",E102,E178) -> 0 | F206: =IF(Labour_SelectedCalcTypeCell="C",F102,F178) -> 0
A207: Stunden maximal | C207: ABCD | D207: - | E207: =E166 -> 1720 | F207: =F166 -> 1720
A208: Stunden effektiv | C208: ABCD | D208: - | E208: =MAX(E206:E207) -> 1720 | F208: =MAX(F206:F207) -> 1720
A209: Abzüge in % (zB nicht förderbarer Gebietskörperschaftsanteil) | C209: ABCD | D209: - | E209: =IF(Labour_SelectedCalcTypeCell="C",E131,E183) -> 0 | F209: =IF(Labour_SelectedCalcTypeCell="C",F131,F183) -> 0
A210: Gemeinskostensatz | C210: ABCD | D210: - | E210: =IF(Labour_SelectedCalcTypeCell="C",E134,E185) -> 0 | F210: =IF(Labour_SelectedCalcTypeCell="C",F134,F185) -> 0
A211: Anzahl der zu vermindernden Stunden durch VWK | D211: ABCD | E211: 0 | F211: 0 | G211: =E211 -> 0 | H211: =G211 -> 0 | M211: =IF(Labour_DataSubmittedCell="No",G211,H211) -> 0
A212: Abzüge in % vermindert durch VWK | D212: ABCD | E212: 0 | F212: 0
A213: Anzahl der sanktionsrelevant zu vermindernden Stunden durch VWK | D213: ABCD | E213: 0 | F213: 0 | G213: =E213 -> 0 | H213: =G213 -> 0 | M213: =IF(Labour_DataSubmittedCell="No",G213,H213) -> 0
A214: Abzüge in % sanktionsrelevant durch VWK | D214: ABCD | E214: 0 | F214: 0
D215: ABCD
A216: förderbare Personalkosten eingereicht laut FW | D216: - | E216: =ROUND(MIN(E206,E207)*E204*(1-E209),2) -> 0 | F216: =ROUND(MIN(F206,F207)*F204*(1-F209),2) -> 0 | G216: =E216 -> 0 | H216: =G216 -> 0 | M216: =IF(Labour_DataSubmittedCell="No",G216,H216) -> 0
A217: verminderte Personalkosten nach VWK | D217: ABCD | E217: =ROUND(MAX(0,MIN((E206-E211),E207)*E204)*(1-E209-E212),2) -> 0 | F217: =ROUND(MAX(0,MIN((F206-F211),F207)*F205)*(1-F209-F212),2) -> 0 | G217: =E217 -> 0 | H217: =G217 -> 0 | M217: =IF(Labour_DataSubmittedCell="No",G217,H217) -> 0
A218: anrechenbare Personalkosten nach VWK | D218: ABCD | E218: =ROUND(MAX(0,MIN((E206-E211-E213),E207)*E204)*(1-E209-E212-E214),2) -> 0 | F218: =ROUND(MAX(0,MIN((F206-F211-F213),F207)*F205)*(1-F209-F212-F214),2) -> 0 | G218: =E218 -> 0 | H218: =G218 -> 0 | M218: =IF(Labour_DataSubmittedCell="No",G218,H218) -> 0
... 28 more rows

Sheet Notizen
A1: Zahlungsantrag - Notizen und Anmerkungen
L2: RL/AMA v469.25 / Jan. 2022
A3: Betriebs-/Klientennummer: | D3: =TRIM('Auswahl Belegaufstellungen'!Stm_ApplicantID) -> 
A5: Förderungswerber: | D5: =TRIM('Auswahl Belegaufstellungen'!Stm_ApplicantName) -> 
A7: Antragsnummer: | D7: =TRIM('Auswahl Belegaufstellungen'!Stm_ApplicationID) -> 
A9: Fördergegenstand:
A11: Vorsteuerabzugsberechtigung: | D11: =TRIM('Auswahl Belegaufstellungen'!Stm_TaxDeduct) -> Ja
A13: Genehmigter Zeitraum für | D13: Beginn | F13: Ende
A14: Kostenanerkennung: | D14: =IF(TRIM('Auswahl Belegaufstellungen'!Stm_SupportPeriodStart)="","",'Auswahl Belegaufstellungen'!Stm_SupportPeriodStart) ->  | F14: =IF(TRIM('Auswahl Belegaufstellungen'!Stm_SupportPeriodEnd)="","",'Auswahl Belegaufstellungen'!Stm_SupportPeriodEnd) -> 
A16: Hier ist Raum für freie Notizen, Anmerkungen und Nebenrechnungen…

Sheet TEMPLATE Notizen (hidden)
A1: Zahlungsantrag - Notizen und Anmerkungen
L2: RL/AMA v469.25 / Jan. 2022
A3: Betriebs-/Klientennummer:
A5: Förderungswerber:
A7: Antragsnummer:
A9: Fördergegenstand:
A11: Vorsteuerabzugsberechtigung: | D11: Ja
A13: Genehmigter Zeitraum für | D13: Beginn | F13: Ende
A14: Kostenanerkennung:
A16: Hier ist Raum für freie Notizen, Anmerkungen und Nebenrechnungen…

Sheet TABLE Beschäftigungsgruppen (hidden)
A1: Beschäftigungsgruppe | B1: Gesamt-Faktor | C1: Davon von HBM-Grundlage unabhängig | D1: von HBM- Grundlage abhängig (bruttojahresbezug oder asvg_hoechstbem_grundl je nachdem was kleiner ist) | E1: Regelarbeitsstunden/Jahr (ohne Überstundenpauschale) | F1: Regelarbeitsstunden/Jahr (mit Überstundenpauschale) | G1: Fixer Stundensatz
A2: Personalabrechnung bis 2020 | B2: 1.3 | C2: 0.09 | D2: 0.21 | E2: 1800 | F2: 1980 | G2: 0
A3: „normale“ Beschäftigungsgruppen | B3: 1.295676 | C3: 0.085282 | D3: 0.210394 | E3: 1720 | F3: 1900 | G3: 0
A4: Dienstnehmer begünstigter Körperschaften (gemeinnützig gem §§34 bis 37 u. §§ 39 bis 47 BAO) vollversichert | B4: 1.263128 | C4: 0.052575 | D4: 0.210553 | E4: 1720 | F4: 1900 | G4: 0
A5: Freie Dienstnehmer begünstigter Körperschaften (gemeinnützig gem §§34 bis 37 u. §§ 39 bis 47 BAO) vollversichert | B5: 1.258842 | C5: 0.052574 | D5: 0.206268 | E5: 1720 | F5: 1900 | G5: 0
A6: Geringfügige (freie) Dienstnehmer begünstigter Körperschaften (gemeinnützig gem §§34 bis 37 u. §§ 39 bis 47 BAO) mit DAG | B6: 1.228159 | C6: 0.216574 | D6: 0.011585 | E6: 1720 | F6: 1900 | G6: 0
A7: Geringfügige (freie) Dienstnehmer begünstigter Körperschaften (gemeinnützig gem §§34 bis 37 u. §§ 39 bis 47 BAO) ohne DAG | B7: 1.064159 | C7: 0.052574 | D7: 0.011585 | E7: 1720 | F7: 1900 | G7: 0
A8: Freie Dienstnehmer (vollversichert) | B8: 1.291433 | C8: 0.085282 | D8: 0.206151 | E8: 1720 | F8: 1900 | G8: 0
A9: Lehrlinge ab 1.1.2016 | B9: 1.241025 | C9: 0.086725 | D9: 0.1543 | E9: 1720 | F9: 1900 | G9: 0
A10: Behinderte nach dem Behinderteneinstellungsgesetz (Dienstnehmer, vollversichert) | B10: 1.225695 | C10: 0.0153 | D10: 0.210395 | E10: 1720 | F10: 1900 | G10: 0
A11: Behinderte nach dem Behinderteneinstellungsgesetz (freie Dienstnehmer, vollversichert) | B11: 1.221452 | C11: 0.0153 | D11: 0.206152 | E11: 1720 | F11: 1900 | G11: 0
A12: Geringfügig (freie) Beschäftige nach dem Behinderteneinstellungs-gesetz (mit DAG) | B12: 1.190769 | C12: 0.1793 | D12: 0.011469 | E12: 1720 | F12: 1900 | G12: 0
A13: Geringfügig (freie) Beschäftige nach dem Behinderteneinstellungs-gesetz (ohne DAG) | B13: 1.026769 | C13: 0.0153 | D13: 0.011469 | E13: 1720 | F13: 1900 | G13: 0
A14: Geringfügige Dienstnehmer und geringfügige freie Dienstnehmer mit pauschalem DAG | B14: 1.260751 | C14: 0.249282 | D14: 0.011469 | E14: 1720 | F14: 1900 | G14: 0
A15: Geringfügige Dienstnehmer und geringfügige freie Dienstnehmer ohne pauschalem DAG | B15: 1.096751 | C15: 0.085282 | D15: 0.011469 | E15: 1720 | F15: 1900 | G15: 0
A16: Beamte | B16: 1.214824 | C16: 0.045151 | D16: 0.169673 | E16: 1720 | F16: 1900 | G16: 0
A17: Vertragsbedienstete (vollversichert) | B17: 1.259546 | C17: 0.060451 | D17: 0.199095 | E17: 1720 | F17: 1900 | G17: 0
A18: Vertragsbedienstete (geringfügig) | B18: 1.191337 | C18: 0.1868 | D18: 0.004537 | E18: 1720 | F18: 1900 | G18: 0
A19: fallweise geringfügig Beschäftigte | B19: 0 | C19: -1 | D19: 0 | E19: 1720 | F19: 1900 | G19: 24

Sheet TABLE Gehaltsgrenzen (hidden)
A1: 2022 | B1: [1] Beamten | C1: [2] ASVG
A2: Jahr | B2: A1/9/1/2 | C2: HöchstbeitragsGL
A3: 2007 | B3: 64120.14 | C3: 53760 | D3: =B3/14 -> 4580.01 | E3: =C3/14 -> 3840
A4: 2008 | B4: 65829.6 | C4: 55020 | D4: 4702.114286 | E4: 3930
A5: 2009 | B5: 68166.82 | C5: 56280 | D5: 4869.058571 | E5: 4020
A6: 2010 | B6: 68858.89 | C6: 57540 | D6: 4918.492143 | E6: 4110
A7: 2011 | B7: 69450 | C7: 58800 | D7: 4960.714286 | E7: 4200
A8: 2012 | B8: 71290 | C8: 59220 | D8: 5092.142857 | E8: 4230
A9: 2013 | B9: 71280 | C9: 62160 | D9: 5091.428571 | E9: 4440
A10: 2014 | B10: 72380 | C10: 63420 | D10: 5170 | E10: 4530
A11: 2015 | B11: 73670 | C11: 65100 | D11: 5262.142857 | E11: 4650
A12: 2016 | B12: 74870 | C12: 68040 | D12: 5347.857143 | E12: 4860
A13: 2017 | B13: 77610 | C13: 69720 | D13: 5543.571429 | E13: 4980
A14: 2018 | B14: 79320 | C14: 71820 | D14: 5665.714286 | E14: 5130
A15: 2019 | B15: 81570 | C15: 73080 | D15: 5826.428571 | E15: 5220
A16: 2020 | B16: 83410 | C16: =5370*14 -> 75180 | D16: 5957.857143 | E16: 5370
A17: 2021 | B17: 84620 | C17: 77700 | D17: 6044.285714 | E17: 5550
A18: 2022 | B18: 87160 | C18: 79380 | D18: 6225.714286 | E18: 5670
A19: 2023 | B19: 100000 | C19: 80000 | D19: 7142.857143 | E19: 5714.285714
A21: ACHTUNG: Wenn Daten für ein neues Jahr eingetragen werden, muss auch in Zelle A1 die Jahreszahl angepasst werden.
A22: Sonst beschwert sich die Personalkostenaufstellung weiter über ungültige Höchstwerte.
A24: [1] Jahresbruttogehälter für Beamte der allgemeinen Verwaltung der Dienstklasse VII / Gehaltstufe 2 (lt. Gehaltsgesetz - GehG §118(5))
B25: https://www.ris.bka.gv.at/NormDokument.wxe?Abfrage=Bundesnormen&Gesetzesnummer=10008163&FassungVom=2015-09-28&Paragraf=118
A26: Inkrafttretensdatum | B26: Außerkrafttretensdatum | F26: 12 Monate | G26: 14 Monate | H26: Jahr/14Mon.
A27: 2007-01-01 | B27: 2007-12-31 | C27: 3065.4 | E27: 2007 | F27: =12*C27 -> 36784.8 | G27: =F27*14/12 -> 42915.6 | H27: =B3/G27 -> 1.494098649
A28: 2008-01-01 | B28: 2008-12-31 | C28: 3148.2 | E28: 2008 | F28: =12*C28 -> 37778.4 | G28: 44074.8 | H28: 1.493588173
A29: 2009-01-01 | B29: 2009-12-31 | C29: 3260 | E29: 2009 | F29: =12*C29 -> 39120 | G29: 45640 | H29: 1.493576249
A30: 2010-01-01 | B30: 2010-12-31 | C30: 3293.3 | E30: 2010 | F30: =12*C30 -> 39519.6 | G30: 46106.2 | H30: 1.49348439
A31: 2011-01-01 | B31: 2012-01-31 | C31: 3321.3 | E31: 2011 | F31: =12*C31 -> 39855.6 | G31: 46498.2 | H31: 1.493606204
A32: 2012-02-01 | B32: 2014-02-28 | C32: 3417.4 | E32: 2012 | F32: =C31+11*C32 -> 40912.7 | G32: 47731.48333 | H32: 1.493563473
A33: 2014-03-01 | B33: 2015-02-11 | C33: 3479.7 | E33: 2013 | F33: =12*C32 -> 41008.8 | G33: 47843.6 | H33: 1.489854442
A34: 2015-02-12 | C34: 3479.7 | E34: 2014 | F34: =2*C32+10*C33 -> 41631.8 | G34: 48570.43333 | H34: 1.490207005
E35: 2015 | F35: =1.4*C33+10.6*C34 -> 41756.4 | G35: 48715.8 | H35: 1.512240382
E36: 2016
A37: Seit 2017(?) heisst es nicht mehr Dienstklasse VII/Gehaltsstufe 2, sondern Verwendungsgruppe A1/Gehaltsstufe 9/Funktionsgruppe 1/Funktionsstufe 2
A39: Es ist unklar wie genau man von den im Gesetz aufgeführten Monatsgehältern zu den in der obigen Tabelle aufgeführten
A40: Jahresbruttogehältern kommt. Vermutlich muss man die passenden Dienstgeberbeiträge aufschlagen, aber wie genau…
A41: Näherungsweise passend wäre: 14 Monatsgehälter + Sozialversicherung Aufschlag = Jahresgehalt ?!?
A43: [2] ASVG (Allgem. SozialVersicherungsGesetz) Höchstbeitragsgrundlage für die Berechnung der Beiträge zur Sozialversicherung
B44: https://de.wikipedia.org/wiki/Höchstbeitragsgrundlage
A46: Beitragsrechtliche Sätze 2016: (http://sozialversicherung.at --> ÜBER UNS --> Zahlen - Daten - Fakten / Aktuelle Werte)
B47: https://www.sozialversicherung.at/portal27/sec/portal/esvportal/content/contentWindow?contentid=10008.626564&action=b&cacheability=PAGE&version=1450778169
A49: 2007
A50: 2008
A51: 2009
A52: 2010
A53: 2011
A54: 2012
A55: 2013
A56: 2014
A57: 2015
A58: 2016
A60: VO 640/2014 = Delegierte Verordnung (EU) Nr. 640/2014 der Kommission vom 11. März 2014
A61: https://www.bmlfuw.gv.at/dam/jcr:05e477c3-6d14-412a-beb1-93380de11239/640_2014.pdf
A62: http://eur-lex.europa.eu/legal-content/de/ALL/?uri=CELEX%3A32014R0640
A65: Kostenlimit für Beamte 2021 (allgem. Verwaltung - Dienstklasse VII/2 ohne Überstundenpauschale)
D66: Betrag/Monat | E66: Monate/Jahr | F66: Betrag/Jahr
A67: Gehalt | D67: 4113.2 | E67: 14 | F67: =D67*E67 -> 57584.8
A68: Funktionszulage | D68: 182.4 | E68: 14 | F68: =D68*E68 -> 2553.6
A69: Summe Gehalt/Zulage | D69: =SUM(D67:D68) -> 4295.6 | F69: =SUM(F67:F68) -> 60138.4
A71: Dienstgeberbeiträge
A72: Krankenversicherung | C72: 0.03535 | D72: =C72*D$69 -> 151.84946 | E72: 14 | F72: =D72*E72 -> 2125.89244
A73: Wohnbauförderung | C73: 0.005 | D73: =C73*D$69 -> 21.478 | E73: 12 | F73: =D73*E73 -> 257.736
A74: Unfallversicherung | C74: 0.0047 | D74: =C74*D$69 -> 20.18932 | E74: 12 | F74: =D74*E74 -> 242.27184
A75: Familienlastenausgl. | C75: 0.039 | D75: =C75*D$69 -> 167.5284 | E75: 12 | F75: =D75*E75 -> 2010.3408
A76: Pensionsvorsorge (Pauschale) | C76: 0.33 | D76: =C76*D$69 -> 1417.548 | E76: 14 | F76: =D76*E76 -> 19845.672
A77: Summe Dienstgeberbeiträge | F77: =SUM(F72:F76) -> 24481.91308
A79: Summe total (gerundet) | F79: =ROUND(F69+F77,0) -> 84620
